Workbook

Sheet Index
A1: INDEX - click the links below to navigate
A2: =Residuals!A1 -> Residuals and Averages
A3: ='T1'!A1 -> Table 1 - Changes to Average Generation Tariffs
A4: ='T2'!A1 -> Table 2 - Generation Wider Tariffs
A5: ='T3 & Fig 1'!A1 -> Table 3 - Generation Tariff Changes
A6: ='T4'!A1 -> Table 4 - Local Substation Tariffs
A7: ='T5'!A1:F1 -> Table 5 - Onshore Local Circuit Tariffs
A8: ='T6'!A1 -> Table 6 - CMP203: Circuits subject to one-off charges
A9: ='T7'!A1 -> Table 7 - Offshore Local Tariffs
A10: ='T8'!A1 -> Table 8 - Summary of Demand Tariffs
A11: ='T9'!A1 -> Table 9 - Demand Tariffs
A12: ='T10 & Fig 2'!A1 -> Table 10 - Change in HH Demand Tariffs
A13: ='T11 & Fig 3'!A1 -> Table 11 - Embedded Export Tariff
A14: ='T12 & Fig 4'!A1 -> Table 12 - NHH Demand Tariff Changes
A15: ='T13'!A1 -> Table 13 - Contracted and Modelled TEC
A16: ='T14'!A1 -> Table 14 - Interconnectors
A17: ='T15'!A1 -> Table 15 - Allowed Revenues
A18: ='T16'!B1 -> Table 16 - Generation and Demand Revenue Proportions
A19: ='T17'!A1 -> Table 17 - Charging Bases
A20: ='T18'!B1 -> Table 18 - Residual Calculation
A21: ='S1 - S2'!A1 -> Table S1 & S2 – The effect of including CMP344
A22: ='S3'!A1:E1 -> Table S3 – The effect of including congestion management
A23: ='S4'!A1 -> Table S4 - Generation revenue breakdown and adjustment tariff under GOS sensitivity
A24: ='S5'!A1 -> Table S5 - Generation revenue breakdown and adjustment tariff under GOS sensitivity
A25: Tables S6 & S7- Impact of security factor at 2d.p.
A26: Tables S8 & S9- Impact of security factor at 2d.p.
A27: Table S10 - Summary of Demand Tariffs (Base Case vs RIIO-2 EC&F Update)
A28: Table S11 - Change in HH Demand Tariffs (Base Case vs RIIO-2 EC&F Update)
A29: Table S12 - Embedded Export Tariff (Base Case vs RIIO-2 EC&F Update)
A30: Table S13 - NHH Demand Tariff Changes (Base Case vs RIIO-2 EC&F Update)
A31: Table S14 - Changes to Average Tariffs (Base Case vs RIIO-2 EC&F Update)
A32: Table S15 - Generation Wider Tariffs (Base Case vs RIIO-2 EC&F Update)
A33: Table S16 - Generation Tariff Changes (Base Case vs RIIO-2 EC&F Update)
A34: ='T19'!A1 -> Table 19 - Summary of in flight CUSC modification proposals
A35: ='T20'!A1 -> Table 20 - Demand Locational Tariffs
A36: ='T21'!A1 -> Table 21 - Breakdown of the Embedded Export Tariff
A37: ='T22'!A1 -> Table 22 - Demand Profiles
A38: ='T23'!A1 -> Table 23 - Generic Annual Load Factors
A39: ='T24'!A1 -> Table 24 - Connected Generation Changes
A40: ='T25-28'!A1 -> Tables 25-28 - Revenue Breakdown
A41: ='T29'!A1 -> Table 29 - Offshore Revenues

Sheet Residuals
A1: Residuals and Averages | D1: Return to Index
A3: Residual | B3: ='T1'!B3 -> 2021/22 August | C3: ='T1'!C3 -> 2021/22 Draft | D3: ='T1'!D3 -> Change since last forecast
A4: Generation | B4: ='T1'!B4 -> -0.2327513396 | C4: ='T1'!C4 -> -0.02764036881 | D4: ='T1'!D4 -> 0.2051109707
A5: Demand | B5: ='T8'!C5 -> 46.55408474 | C5: ='T8'!D5 -> 54.342512 | D5: ='T8'!E5 -> 7.788427256
A7: Average Tariff | B7: =B3 -> 2021/22 August | C7: =C3 -> 2021/22 Draft | D7: =D3 -> Change since last forecast
A8: Generation (£/kW) | B8: ='T1'!B5 -> 10.74046071 | C8: ='T1'!C5 -> 11.35114923 | D8: ='T1'!D5 -> 0.6106885211 | E8: N.B. These generation average tariffs include local tariffs
A9: HH Demand (£/kW) | B9: ='T8'!C4 -> 44.81272837 | C9: ='T8'!D4 -> 52.460812 | D9: =C9-B9 -> 7.648083626
A10: NHH Demand (p/kWh) | B10: ='T8'!C13 -> 5.690193893 | C10: ='T8'!D13 -> 6.56362 | D10: =C10-B10 -> 0.8734261074
A11: Embedded Export (£/kW) | B11: ='T8'!C7 -> 1.859122004 | C11: ='T8'!D7 -> 2.272481 | D11: =C11-B11 -> 0.4133589956

Sheet T1
A1: Table 1 - Changes to Average Generation Tariffs | F1: Return to Index
A3: Generation Tariffs (£/kW) | B3: 2021/22 August | C3: 2021/22 Draft | D3: Change since last forecast
A4: Residual | B4: -0.2327513396 | C4: -0.02764036881 | D4: =C4-B4 -> 0.2051109707
A5: Average Generation Tariff* | B5: 10.74046071 | C5: 11.35114923 | D5: =C5-B5 -> 0.6106885211
A6: *N.B. These generation average tariffs include local tariffs

Sheet T2
A1: Table 2 - Generation Wider Tariffs | I1: Return to Index
C3: Tariffs (£/kW)
G4: Example tariffs for a generator of each technology type
C5: System Peak | D5: Shared Year Round | E5: Not Shared Year Round | F5: Residual | G5: Conventional Carbon 80% | H5: Conventional Low Carbon 80% | I5: Intermittent 40%
A6: Zone | B6: Zone Name | G6: Tariff (£/kW) | H6: Tariff (£/kW) | I6: Tariff (£/kW)
A7: 1 | B7: North Scotland | C7: 4.233515 | D7: 20.365952 | E7: 19.336158 | F7: -0.02764 | G7: 35.967563 | H7: 39.8347946 | I7: 27.4548988
A8: 2 | B8: East Aberdeenshire | C8: 3.233915 | D8: 10.749346 | E8: 19.336158 | F8: -0.02764 | G8: 27.2746782 | H8: 31.1419098 | I8: 23.6082564
A9: 3 | B9: Western Highlands | C9: 3.941805 | D9: 18.596782 | E9: 18.60931 | F9: -0.02764 | G9: 33.6790386 | H9: 37.4009006 | I9: 26.0203828
A10: 4 | B10: Skye and Lochalsh | C10: -0.615917 | D10: 18.596782 | E10: 20.430374 | F10: -0.02764 | G10: 30.5781678 | H10: 34.6642426 | I10: 27.8414468
A11: 5 | B11: Eastern Grampian and Tayside | C11: 4.748428 | D11: 13.720708 | E11: 15.692907 | F11: -0.02764 | G11: 28.25168 | H11: 31.3902614 | I11: 21.1535502
A12: 6 | B12: Central Grampian | C12: 4.382826 | D12: 14.674469 | E12: 16.787796 | F12: -0.02764 | G12: 29.524998 | H12: 32.8825572 | I12: 22.6299436
A13: 7 | B13: Argyll | C13: 2.713385 | D13: 12.693899 | E13: 25.645643 | F13: -0.02764 | G13: 33.3573786 | H13: 38.4865072 | I13: 30.6955626
A14: 8 | B14: The Trossachs | C14: 3.856094 | D14: 12.693899 | E14: 14.471673 | F14: -0.02764 | G14: 25.5609116 | H14: 28.4552462 | I14: 19.5215926
A15: 9 | B15: Stirlingshire and Fife | C15: 2.735806 | D15: 11.216771 | E15: 13.214771 | F15: -0.02764 | G15: 22.2533996 | H15: 24.8963538 | I15: 17.6738394
A16: 10 | B16: South West Scotlands | C16: 3.029622 | D16: 11.576869 | E16: 13.492567 | F16: -0.02764 | G16: 23.0575308 | H16: 25.7560442 | I16: 18.0956746
A17: 11 | B17: Lothian and Borders | C17: 2.996294 | D17: 11.576869 | E17: 6.680246 | F17: -0.02764 | G17: 17.574346 | H17: 18.9103952 | I17: 11.2833536
A18: 12 | B18: Solway and Cheviot | C18: 2.589885 | D18: 7.803323 | E18: 7.48462 | F18: -0.02764 | G18: 14.7925994 | H18: 16.2895234 | I18: 10.5783092
A19: 13 | B19: North East England | C19: 3.43228 | D19: 6.040201 | E19: 4.520261 | F19: -0.02764 | G19: 11.8530096 | H19: 12.7570618 | I19: 6.9087014
A20: 14 | B20: North Lancashire and The Lakes | C20: 2.549497 | D20: 6.040201 | E20: 1.282715 | F20: -0.02764 | G20: 8.3801898 | H20: 8.6367328 | I20: 3.6711554
A21: 15 | B21: South Lancashire, Yorkshire and Humber | C21: 3.889886 | D21: 2.459162 | E21: 0.35706 | F21: -0.02764 | G21: 6.1152236 | H21: 6.1866356 | I21: 1.3130848
A22: 16 | B22: North Midlands and North Wales | C22: 3.250289 | D22: 0.887136 | E22: 0 | F22: -0.02764 | G22: 3.9323578 | H22: 3.9323578 | I22: 0.3272144
A23: 17 | B23: South Lincolnshire and North Norfolk | C23: 1.345403 | D23: 1.591046 | E23: 0 | F23: -0.02764 | G23: 2.5905998 | H23: 2.5905998 | I23: 0.6087784
A24: 18 | B24: Mid Wales and The Midlands | C24: 1.667277 | D24: 1.835025 | E24: 0 | F24: -0.02764 | G24: 3.107657 | H24: 3.107657 | I24: 0.70637
A25: 19 | B25: Anglesey and Snowdon | C25: 4.914741 | D25: 1.033645 | E25: 0 | F25: -0.02764 | G25: 5.714017 | H25: 5.714017 | I25: 0.385818
A26: 20 | B26: Pembrokeshire | C26: 7.631323 | D26: -6.465761 | E26: 0 | F26: -0.02764 | G26: 2.4310742 | H26: 2.4310742 | I26: -2.6139444
A27: 21 | B27: South Wales & Gloucester | C27: 3.500007 | D27: -6.809795 | E27: 0 | F27: -0.02764 | G27: -1.975469 | H27: -1.975469 | I27: -2.751558
A28: 22 | B28: Cotswold | C28: 2.334014 | D28: 3.607477 | E28: -8.675744 | F28: -0.02764 | G28: -1.7482396 | H28: -3.4833884 | I28: -7.2603932
A29: 23 | B29: Central London | C29: -3.776917 | D29: 3.607477 | E29: -5.65534 | F29: -0.02764 | G29: -5.4428474 | H29: -6.5739154 | I29: -4.2399892
A30: 24 | B30: Essex and Kent | C30: -3.419021 | D30: 3.607477 | E30: 0 | F30: -0.02764 | G30: -0.5606794 | H30: -0.5606794 | I30: 1.4153508
A31: 25 | B31: Oxfordshire, Surrey and Sussex | C31: -1.011088 | D31: -1.924661 | E31: 0 | F31: -0.02764 | G31: -2.5784568 | H31: -2.5784568 | I31: -0.7975044
A32: 26 | B32: Somerset and Wessex | C32: -2.305262 | D32: -3.396104 | E32: 0 | F32: -0.02764 | G32: -5.0497852 | H32: -5.0497852 | I32: -1.3860816
A33: 27 | B33: West Devon and Cornwall | C33: -2.590642 | D33: -8.527674 | E33: 0 | F33: -0.02764 | G33: -9.4404212 | H33: -9.4404212 | I33: -3.4387096

Sheet T3 & Fig 1
A1: Table 3 - Generation Tariff Changes | L1: Return to Index
C4: Wider Generation Tariffs (£/kW)
C5: Conventional Carbon 80% | F5: Conventional Low Carbon 80% | I5: Intermittent 40% | L5: Change in Residual
A6: Zone | B6: Zone Name | C6: 2021/22 August | D6: 2021/22 Draft | E6: Change | F6: 2021/22 August | G6: 2021/22 Draft | H6: Change | I6: 2021/22 August | J6: 2021/22 Draft | K6: Change
A7: 1 | B7: North Scotland | C7: 35.2744276 | D7: 35.967563 | E7: =D7-C7 -> 0.6931354 | F7: 39.0476858 | G7: 39.8347946 | H7: =G7-F7 -> 0.7871088 | I7: 26.6695804 | J7: 27.4548988 | K7: =J7-I7 -> 0.7853184 | L7: 0.2051109707
A8: 2 | B8: East Aberdeenshire | C8: 26.6328642 | D8: 27.2746782 | E8: =D8-C8 -> 0.641814 | F8: 30.4061224 | G8: 31.1419098 | H8: =G8-F8 -> 0.7357874 | I8: 22.8939112 | J8: 23.6082564 | K8: =J8-I8 -> 0.7143452 | L8: 0.2051109707
A9: 3 | B9: Western Highlands | C9: 32.942153 | D9: 33.6790386 | E9: 0.7368856 | F9: 36.5831992 | G9: 37.4009006 | H9: 0.8177014 | I9: 25.2878796 | J9: 26.0203828 | K9: 0.7325032 | L9: 0.2051109707
A10: 4 | B10: Skye and Lochalsh | C10: 26.3893252 | D10: 30.5781678 | E10: 4.1888426 | F10: 30.0110052 | G10: 34.6642426 | H10: 4.6532374 | I10: 25.1910486 | J10: 27.8414468 | K10: 2.6503982 | L10: 0.2051109707
A11: 5 | B11: Eastern Grampian and Tayside | C11: 27.34176 | D11: 28.25168 | E11: 0.90992 | F11: 30.446901 | G11: 31.3902614 | H11: 0.9433604 | I11: 20.644432 | J11: 21.1535502 | K11: 0.5091182 | L11: 0.2051109707
A12: 6 | B12: Central Grampian | C12: 29.0494132 | D12: 29.524998 | E12: 0.4755848 | F12: 32.3783882 | G12: 32.8825572 | H12: 0.504169 | I12: 22.1722016 | J12: 22.6299436 | K12: 0.457742 | L12: 0.2051109707
A13: 7 | B13: Argyll | C13: 34.2428064 | D13: 33.3573786 | E13: -0.8854278 | F13: 39.466308 | G13: 38.4865072 | H13: -0.9798008 | I13: 30.837805 | J13: 30.6955626 | K13: -0.1422424 | L13: 0.2051109707
A14: 8 | B14: The Trossachs | C14: 25.0139582 | D14: 25.5609116 | E14: 0.5469534 | F14: 27.89218 | G14: 28.4552462 | H14: 0.5630662 | I14: 19.111406 | J14: 19.5215926 | K14: 0.4101866 | L14: 0.2051109707
A15: 9 | B15: Stirlingshire and Fife | C15: 21.5938472 | D15: 22.2533996 | E15: 0.6595524 | F15: 24.2213208 | G15: 24.8963538 | H15: 0.675033 | I15: 17.2389554 | J15: 17.6738394 | K15: 0.434884 | L15: 0.2051109707
A16: 10 | B16: South West Scotlands | C16: 22.4080116 | D16: 23.0575308 | E16: 0.6495192 | F16: 25.0838128 | G16: 25.7560442 | H16: 0.6722314 | I16: 17.6123734 | J16: 18.0956746 | K16: 0.4833012 | L16: 0.2051109707
A17: 11 | B17: Lothian and Borders | C17: 16.8773764 | D17: 17.574346 | E17: 0.6969696 | F17: 18.1954738 | G17: 18.9103952 | H17: 0.7149214 | I17: 10.8238544 | J17: 11.2833536 | K17: 0.4594992 | L17: 0.2051109707
A18: 12 | B18: Solway and Cheviot | C18: 13.9634218 | D18: 14.7925994 | E18: 0.8291776 | F18: 15.4439948 | G18: 16.2895234 | H18: 0.8455286 | I18: 10.0955324 | J18: 10.5783092 | K18: 0.4827768 | L18: 0.2051109707
A19: 13 | B19: North East England | C19: 11.478354 | D19: 11.8530096 | E19: 0.3746556 | F19: 12.3883226 | G19: 12.7570618 | H19: 0.3687392 | I19: 6.5469608 | J19: 6.9087014 | K19: 0.3617406 | L19: 0.2051109707
A20: 14 | B20: North Lancashire and The Lakes | C20: 7.6850032 | D20: 8.3801898 | E20: 0.6951866 | F20: 7.9282406 | G20: 8.6367328 | H20: 0.7084922 | I20: 3.2133048 | J20: 3.6711554 | K20: 0.4578506 | L20: 0.2051109707
A21: 15 | B21: South Lancashire, Yorkshire and Humber | C21: 5.5759474 | D21: 6.1152236 | E21: 0.5392762 | F21: 5.6463578 | G21: 6.1866356 | H21: 0.5402778 | I21: 0.8733774 | J21: 1.3130848 | K21: 0.4397074 | L21: 0.2051109707
A22: 16 | B22: North Midlands and North Wales | C22: 3.3680124 | D22: 3.9323578 | E22: 0.5643454 | F22: 3.3680124 | G22: 3.9323578 | H22: 0.5643454 | I22: -0.1247798 | J22: 0.3272144 | K22: 0.4519942 | L22: 0.2051109707
A23: 17 | B23: South Lincolnshire and North Norfolk | C23: 2.000066 | D23: 2.5905998 | E23: 0.5905338 | F23: 2.000066 | G23: 2.5905998 | H23: 0.5905338 | I23: -0.021509 | J23: 0.6087784 | K23: 0.6302874 | L23: 0.2051109707
A24: 18 | B24: Mid Wales and The Midlands | C24: 1.7236216 | D24: 3.107657 | E24: 1.3840354 | F24: 1.7236216 | G24: 3.107657 | H24: 1.3840354 | I24: 0.1084718 | J24: 0.70637 | K24: 0.5978982 | L24: 0.2051109707
A25: 19 | B25: Anglesey and Snowdon | C25: 5.3229256 | D25: 5.714017 | E25: 0.3910914 | F25: 5.3229256 | G25: 5.714017 | H25: 0.3910914 | I25: -0.2600802 | J25: 0.385818 | K25: 0.6458982 | L25: 0.2051109707
A26: 20 | B26: Pembrokeshire | C26: 5.3147578 | D26: 2.4310742 | E26: -2.8836836 | F26: 5.3147578 | G26: 2.4310742 | H26: -2.8836836 | I26: -2.1958406 | J26: -2.6139444 | K26: -0.4181038 | L26: 0.2051109707
A27: 21 | B27: South Wales & Gloucester | C27: 1.7991538 | D27: -1.975469 | E27: -3.7746228 | F27: 1.7991538 | G27: -1.975469 | H27: -3.7746228 | I27: -2.2420966 | J27: -2.751558 | K27: -0.5094614 | L27: 0.2051109707
A28: 22 | B28: Cotswold | C28: -1.664316 | D28: -1.7482396 | E28: -0.0839236 | F28: -3.4407926 | G28: -3.4833884 | H28: -0.0425958 | I28: -7.5868948 | J28: -7.2603932 | K28: 0.3265016 | L28: 0.2051109707
A29: 23 | B29: Central London | C29: -6.1607948 | D29: -5.4428474 | E29: 0.7179474 | F29: -7.3475046 | G29: -6.5739154 | H29: 0.7735892 | I29: -4.6380608 | J29: -4.2399892 | K29: 0.3980716 | L29: 0.2051109707
A30: 24 | B30: Essex and Kent | C30: -1.2788496 | D30: -0.5606794 | E30: 0.7181702 | F30: -1.2788496 | G30: -0.5606794 | H30: 0.7181702 | I30: 1.2954882 | J30: 1.4153508 | K30: 0.1198626 | L30: 0.2051109707
A31: 25 | B31: Oxfordshire, Surrey and Sussex | C31: -3.0834286 | D31: -2.5784568 | E31: 0.5049718 | F31: -3.0834286 | G31: -2.5784568 | H31: 0.5049718 | I31: -1.0957898 | J31: -0.7975044 | K31: 0.2982854 | L31: 0.2051109707
A32: 26 | B32: Somerset and Wessex | C32: -4.6851982 | D32: -5.0497852 | E32: -0.364587 | F32: -4.6851982 | G32: -5.0497852 | H32: -0.364587 | I32: -1.4933966 | J32: -1.3860816 | K32: 0.107315 | L32: 0.2051109707
A33: 27 | B33: West Devon and Cornwall | C33: -5.2217578 | D33: -9.4404212 | E33: -4.2186634 | F33: -5.2217578 | G33: -9.4404212 | H33: -4.2186634 | I33: -2.5463274 | J33: -3.4387096 | K33: -0.8923822 | L33: 0.2051109707
A35: Figure 4 - Variation in Generation Zonal Tariffs

Sheet T4
A1: Table 4 - Local Substation Tariffs | E1: Return to Index
A3: 2021/22 Local Substation Tariff (£/kW)
A4: Substation Rating | B4: Connection Type | C4: 132kV | D4: 275kV | E4: 400kV
A5: <1320 MW | B5: No redundancy | C5: 0.167824 | D5: 0.070749 | E5: 0.057144
A6: <1320 MW | B6: Redundancy | C6: 0.37509 | D6: 0.161831 | E6: 0.135062
A7: >=1320 MW | B7: No redundancy | C7: n/a | D7: 0.219716 | E7: 0.180959
A8: >=1320 MW | B8: Redundancy | C8: n/a | D8: 0.343997 | E8: 0.290898

Sheet T5
A1: Table 5 - Onshore Local Circuit Tariffs | H1: Return to Index
A3: Substation Name | B3: (£/kW) | C3: Substation Name | D3: (£/kW) | E3: Substation Name | F3: (£/kW)
A4: Aberarder | B4: 1.693169654 | C4: Dunhill | D4: 1.465376797 | E4: Marchwood | F4: 0.3904701702
A5: Aberdeen Bay | B5: 2.667514189 | C5: Dunlaw Extension | D5: 1.545643749 | E5: Mark Hill | F5: 0.8957740466
A6: Achruach | B6: 4.393208801 | C6: Edinbane | D6: 7.002587276 | E6: Middle Muir | F6: 2.350844376
A7: Aigas | B7: 0.6691211424 | C7: Ewe Hill | D7: 2.490033864 | E7: Middleton | F7: 0.1555075882
A8: An Suidhe | B8: -0.9824117734 | C8: Fallago | D8: 0.4482011232 | E8: Millennium South | F8: 0.482938712
A9: Arecleoch | B9: 2.124875829 | C9: Farr | D9: 3.647698401 | E9: Millennium Wind | F9: 1.867942574
A10: Baglan Bay | B10: -0.1485793431 | C10: Fernoch | D10: 4.499987862 | E10: Moffat | F10: 0.1948516215
A11: Beinneun Wind Farm | B11: 1.536078221 | C11: Ffestiniogg | D11: 0.2588374456 | E11: Mossford | F11: 2.945741386
A12: Bhlaraidh Wind Farm | B12: 0.6605523612 | C12: Finlarig | D12: 0.3275894618 | E12: Nant | F12: -1.256241495
A13: Black Hill | B13: 1.58883345 | C13: Foyers | D13: 0.2996771356 | E13: Necton | F13: 1.149608592
A14: Black Law | B14: 1.787702491 | C14: Galawhistle | D14: 3.579856812 | E14: New Deer | F14: 0.1946919143
A15: BlackCraig Wind Farm | B15: 6.440342532 | C15: Glen Kyllachy | D15: -0.4679849454 | E15: Rhigos | F15: 0.1055102061
A16: BlackLaw Extension | B16: 3.791054535 | C16: Glendoe | D16: 1.881870514 | E16: Rocksavage | F16: 0.01810839472
A17: Clyde (North) | B17: 0.1121979614 | C17: Glenglass | D17: 4.922579192 | E17: Saltend | F17: 0.01775125997
A18: Clyde (South) | B18: 0.1297515134 | C18: Gordonbush | D18: 0.07117742147 | E18: Sandy Knowe | F18: 2.386571208
A19: Corriegarth | B19: 2.963904654 | C19: Griffin Wind | D19: 9.936006216 | E19: South Humber Bank | F19: -0.1896862358
A20: Corriemoillie | B20: 1.702135197 | C20: Hadyard Hill | D20: 2.831775384 | E20: Spalding | F20: 0.2899459837
A21: Coryton | B21: 0.05176151655 | C21: Harestanes | D21: 2.586254692 | E21: Strathbrora | F21: -0.0494154478
A22: Cruachan | B22: 1.866754146 | C22: Hartlepool | D22: 0.09117864169 | E22: Strathy Wind | F22: 1.784321004
A23: Crystal Rig | B23: 0.1413269369 | C23: Invergarry | D23: 0.3743879563 | E23: Stronelairg | F23: 1.093263629
A24: Culligran | B24: 1.773186723 | C24: Kilgallioch | D24: 1.0767385 | E24: Wester Dod | F24: 0.489455884
A25: Deanie | B25: 2.913092473 | C25: Kilmorack | D25: 0.2020508311 | E25: Whitelee | F25: 0.1085786723
A26: Dersalloch | B26: 2.464404483 | C26: Kype Muir | D26: 1.517485154 | E26: Whitelee Extension | F26: 0.301848709
A27: Dinorwig | B27: 2.454655779 | C27: Langage | D27: -0.3449476067
A28: Dorenell | B28: 2.14707223 | C28: Lochay | D28: 0.3743879563
A29: Dumnaglass | B29: 1.159562923 | C29: Luichart | D29: 0.5867272951

Sheet T6
A1: Table 6 - CMP203: Circuits subject to one-off charges | E1: Return to Index
A3: Node 1 | B3: Node 2 | C3: Actual Parameters | D3: Amendment in Transport Model | E3: Generator
A4: Dyce 132kV | B4: Aberdeen Bay 132kV | C4: 9.5km of Cable | D4: 9.5km of OHL | E4: Aberdeen Bay
A5: Crystal Rig 132kV | B5: Wester Dod 132kV | C5: 3.9km of Cable | D5: 3.9km of OHL | E5: Aikengall II
A6: Wishaw 132kV | B6: Blacklaw 132kV | C6: 11.46km of Cable | D6: 11.46km of OHL | E6: Blacklaw
A7: Farigaig 132kV | B7: Corriegarth 132kV | C7: 4km Cable | D7: 4km OHL | E7: Corriegarth
A8: Elvanfoot 275kV | B8: Clyde North 275kV | C8: 6.2km of Cable | D8: 6.2km of OHL | E8: Clyde North
A9: Elvanfoot 275kV | B9: Clyde South 275kV | C9: 7.17km of Cable | D9: 7.17km of OHL | E9: Clyde South
A10: Farigaig 132kV | B10: Dunmaglass 132kV | C10: 4km Cable | D10: 4km OHL | E10: Dunmaglass
A11: Coalburn 132kV | B11: Galawhistle 132kV | C11: 9.7km cable | D11: 9.7km OHL | E11: Galawhistle II
A12: Moffat 132kV | B12: Harestanes 132kV | C12: 15.33km cable | D12: 15.33km OHL | E12: Harestanes
A13: Coalburn 132kV | B13: Kype Muir 132kV | C13: 17km cable | D13: 17km OHL | E13: Kype Muir
A14: Coalburn 132kV | B14: Middle Muir 132kV | C14: 13km cable | D14: 13km OHL | E14: Middle Muir
A15: Melgarve 132kV | B15: Stronelairg 132kV | C15: 10km cable | D15: 10km OHL | E15: Stronelairg
A16: East Kilbride South 275kV | B16: Whitelee 275kV | C16: 6km of Cable | D16: 6km of OHL | E16: Whitelee
A17: East Kilbride South 275kV | B17: Whitelee Extension 275kV | C17: 16.68km of Cable | D17: 16.68km of OHL | E17: Whitelee Extension
A18: Sandy Knowe 132kV | B18: Glen Glass 132kV | C18: 7km of cable | D18: 7km of OHL | E18: Sandy Knowe

Sheet T7
A1: Table 7 - Offshore Local Tariffs | D1: Return to Index
A3: Offshore Generator | B3: Tariff Component (£/kW)
B4: Substation | C4: Circuit | D4: ETUoS
A5: Barrow | B5: 8.847343 | C5: 46.675227 | D5: 1.159009756
A6: Burbo Bank | B6: 11.057328 | C6: 21.346582 | D6: 0
A7: Dudgeon | B7: 16.213542 | C7: 25.417361 | D7: 0
A8: Galloper | B8: 16.54949 | C8: 26.155193 | D8: 0
A9: Greater Gabbard | B9: 16.455306 | C9: 38.045116 | D9: 0
A10: Gunfleet | B10: 19.239008 | C10: 17.730507 | D10: 3.313933
A11: Gwynt Y Mor | B11: 17.844372 | C11: 17.71059 | D11: 0
A12: Humber Gateway | B12: 12.188327 | C12: 27.939147 | D12: 0
A13: Lincs | B13: 16.95783 | C13: 66.640797 | D13: 0
A14: London Array | B14: 11.475403 | C14: 39.308601 | D14: 0
A15: Ormonde | B15: 27.175448 | C15: 50.7739 | D15: 0.404625
A16: Race Bank | B16: 9.794833 | C16: 27.170573 | D16: 0
A17: Robin Rigg | B17: -0.5839443083 | C17: 33.842704 | D17: 10.842987
A18: Robin Rigg West | B18: -0.5839443083 | C18: 33.842704 | D18: 10.842987
A19: Sheringham Shoal | B19: 25.429358 | C19: 29.93507 | D19: 0.6507004236
A20: Thanet | B20: 19.382584 | C20: 36.292362 | D20: 0.8736850048
A21: Walney 1 | B21: 23.476054 | C21: 46.909953 | D21: 0
A22: Walney 2 | B22: 21.842513 | C22: 44.426566 | D22: 0
A23: Walney 3 | B23: 10.061698 | C23: 20.359385 | D23: 0
A24: Walney 4 | B24: 10.061698 | C24: 20.359385 | D24: 0
A25: West of Duddon Sands | B25: 8.896479 | C25: 44.318265 | D25: 0
A26: Westermost Rough | B26: 18.28621 | C26: 31.099818 | D26: 0

Sheet T8
A1: Table 8 - Summary of Demand Tariffs | E1: Return to Index
B3: HH Tariffs | C3: ='T1'!B3 -> 2021/22 August | D3: ='T1'!C3 -> 2021/22 Draft | E3: Change
B4: Average Tariff (£/kW) | C4: 44.81272837 | D4: 52.460812 | E4: 7.648083626
B5: Residual (£/kW) | C5: 46.55408474 | D5: 54.342512 | E5: 7.788427256
B6: EET | C6: =C3 -> 2021/22 August | D6: =D3 -> 2021/22 Draft | E6: Change
B7: Average Tariff (£/kW) | C7: 1.859122004 | D7: 2.272481 | E7: 0.4133589956
B8: Phased residual (£/kW) | C8: 0 | D8: 0 | E8: 0
B9: AGIC (£/kW) | C9: 2.28788 | D9: 2.282952 | E9: -0.004928
B10: Embedded Export Volume (GW) | C10: 7.312919824 | D10: 6.658889378 | E10: -0.6540304466
B11: Total Credit (£m) | C11: 13.59561016 | D11: 15.13220237 | E11: 1.536592208
B12: NHH Tariffs | C12: =C6 -> 2021/22 August | D12: =D6 -> 2021/22 Draft | E12: Change
B13: Average (p/kWh) | C13: 5.690193893 | D13: 6.56362 | E13: 0.8734261074

Sheet T9
A1: Table 9 - Demand Tariffs | E1: Return to Index
A3: Zone | B3: Zone Name | C3: HH Demand Tariff (£/kW) | D3: NHH Demand Tariff (p/kWh) | E3: Embedded Export Tariff (£/kW)
A4: 1 | B4: Northern Scotland | C4: 20.631769 | D4: 2.731383 | E4: 0
A5: 2 | B5: Southern Scotland | C5: 29.787898 | D5: 3.774643 | E5: 0
A6: 3 | B6: Northern | C6: 42.247971 | D6: 5.16877 | E6: 0
A7: 4 | B7: North West | C7: 49.012126 | D7: 6.135768 | E7: 0
A8: 5 | B8: Yorkshire | C8: 49.688949 | D8: 6.035617 | E8: 0
A9: 6 | B9: N Wales & Mersey | C9: 50.465171 | D9: 6.122775 | E9: 0
A10: 7 | B10: East Midlands | C10: 53.518073 | D10: 6.711876 | E10: 1.458513
A11: 8 | B11: Midlands | C11: 55.089779 | D11: 7.022124 | E11: 3.030219
A12: 9 | B12: Eastern | C12: 55.422177 | D12: 7.388941 | E12: 3.362617
A13: 10 | B13: South Wales | C13: 57.425898 | D13: 6.570524 | E13: 5.366338
A14: 11 | B14: South East | C14: 57.975131 | D14: 7.861029 | E14: 5.915571
A15: 12 | B15: London | C15: 60.452238 | D15: 6.340861 | E15: 8.392678
A16: 13 | B16: Southern | C16: 60.12273 | D16: 7.653066 | E16: 8.06317
A17: 14 | B17: South Western | C17: 63.007529 | D17: 8.596217 | E17: 10.947969
A19: Residual charge for demand: | C19: 54.342512

Sheet T10 & Fig 2
A1: Table 10 - Change in HH Demand Tariffs | F1: Return to Index
A3: Zone | B3: Zone Name | C3: =CONCATENATE('T1'!B3, " (£/kW)") -> 2021/22 August (£/kW) | D3: =CONCATENATE('T1'!C3, " (£/kW)") -> 2021/22 Draft (£/kW) | E3: Change (£/kW) | F3: Change in Residual (£/kW) | H3: Zone | I3: Peak (£/kW) | J3: Year Round (£/kW) | K3: Residual £/kW | L3: 2021/22 March (£/kW)
A4: 1 | B4: Northern Scotland | C4: 15.045719 | D4: 20.631769 | E4: =D4-C4 -> 5.58605 | F4: 7.788427538 | H4: 1 | I4: -2.065764737 | J4: -31.64497826 | K4: 54.34251228 | L4: =ROUND(SUM(I4+J4+K4),6) -> 20.631769
A5: 2 | B5: Southern Scotland | C5: 22.489331 | D5: 29.787898 | E5: =D5-C5 -> 7.298567 | F5: 7.788427538 | H5: 2 | I5: -2.680633978 | J5: -21.87398055 | K5: 54.34251228 | L5: =ROUND(SUM(I5+J5+K5),6) -> 29.787898
A6: 3 | B6: Northern | C6: 35.064719 | D6: 42.247971 | E6: 7.183252 | F6: 7.788427538 | H6: 3 | I6: -3.292851645 | J6: -8.801689939 | K6: 54.34251228 | L6: 42.247971
A7: 4 | B7: North West | C7: 41.194336 | D7: 49.012126 | E7: 7.81779 | F7: 7.788427538 | H7: 4 | I7: -2.307845002 | J7: -3.022540906 | K7: 54.34251228 | L7: 49.012126
A8: 5 | B8: Yorkshire | C8: 42.524945 | D8: 49.688949 | E8: 7.164004 | F8: 7.788427538 | H8: 5 | I8: -2.510350167 | J8: -2.143213248 | K8: 54.34251228 | L8: 49.688949
A9: 6 | B9: N Wales & Mersey | C9: 43.295059 | D9: 50.465171 | E9: 7.170112 | F9: 7.788427538 | H9: 6 | I9: -2.395844076 | J9: -1.481497407 | K9: 54.34251228 | L9: 50.465171
A10: 7 | B10: East Midlands | C10: 46.211767 | D10: 53.518073 | E10: 7.306306 | F10: 7.788427538 | H10: 7 | I10: -2.374726889 | J10: 1.550287902 | K10: 54.34251228 | L10: 53.518073
A11: 8 | B11: Midlands | C11: 47.467277 | D11: 55.089779 | E11: 7.622502 | F11: 7.788427538 | H11: 8 | I11: -1.92637089 | J11: 2.673637641 | K11: 54.34251228 | L11: 55.089779
A12: 9 | B12: Eastern | C12: 47.997633 | D12: 55.422177 | E12: 7.424544 | F12: 7.788427538 | H12: 9 | I12: 1.312461653 | J12: -0.2327967449 | K12: 54.34251228 | L12: 55.422177
A13: 10 | B13: South Wales | C13: 45.274604 | D13: 57.425898 | E13: 12.151294 | F13: 7.788427538 | H13: 10 | I13: -3.943770065 | J13: 7.027155871 | K13: 54.34251228 | L13: 57.425898
A14: 11 | B14: South East | C14: 51.174255 | D14: 57.975131 | E14: 6.800876 | F14: 7.788427538 | H14: 11 | I14: 3.707807426 | J14: -0.0751885822 | K14: 54.34251228 | L14: 57.975131
A15: 12 | B15: London | C15: 53.255446 | D15: 60.452238 | E15: 7.196792 | F15: 7.788427538 | H15: 12 | I15: 5.13154366 | J15: 0.9781822517 | K15: 54.34251228 | L15: 60.452238
A16: 13 | B16: Southern | C16: 52.631157 | D16: 60.12273 | E16: 7.491573 | F16: 7.788427538 | H16: 13 | I16: 1.985721962 | J16: 3.794495786 | K16: 54.34251228 | L16: 60.12273
A17: 14 | B17: South Western | C17: 51.929374 | D17: 63.007529 | E17: 11.078155 | F17: 7.788427538 | H17: 14 | I17: 1.48645771 | J17: 7.178559369 | K17: 54.34251228 | L17: 63.007529

Sheet T11 & Fig 3
A1: Table 11 - Embedded Export Tariff | E1: Return to Index
A4: Zone | B4: Zone Name | C4: ='T10 & Fig 2'!C3 -> 2021/22 August (£/kW) | D4: ='T10 & Fig 2'!D3 -> 2021/22 Draft (£/kW) | E4: Change (£/kW) | G4: Zone | H4: EET Locational £/kW | I4: AGIC £/kW | J4: 2021/22 March Tariff £/kW | K4: EET Revenue £m
A5: 1 | B5: Northern Scotland | C5: 0 | D5: 0 | E5: =D5-C5 -> 0 | G5: 1 | H5: -33.710743 | I5: 2.282952 | J5: 0 | K5: 0
A6: 2 | B6: Southern Scotland | C6: 0 | D6: 0 | E6: =D6-C6 -> 0 | G6: 2 | H6: -24.55461453 | I6: 2.282952 | J6: 0 | K6: 0
A7: 3 | B7: Northern | C7: 0 | D7: 0 | E7: 0 | G7: 3 | H7: -12.09454158 | I7: 2.282952 | J7: 0 | K7: 0
A8: 4 | B8: North West | C8: 0 | D8: 0 | E8: 0 | G8: 4 | H8: -5.330385909 | I8: 2.282952 | J8: 0 | K8: 0
A9: 5 | B9: Yorkshire | C9: 0 | D9: 0 | E9: 0 | G9: 5 | H9: -4.653563415 | I9: 2.282952 | J9: 0 | K9: 0
A10: 6 | B10: N Wales & Mersey | C10: 0 | D10: 0 | E10: 0 | G10: 6 | H10: -3.877341483 | I10: 2.282952 | J10: 0 | K10: 0
A11: 7 | B11: East Midlands | C11: 1.945563 | D11: 1.458513 | E11: -0.48705 | G11: 7 | H11: -0.8244389873 | I11: 2.282952 | J11: 1.458513 | K11: 0.7350991905
A12: 8 | B12: Midlands | C12: 3.201072 | D12: 3.030219 | E12: -0.170853 | G12: 8 | H12: 0.747266751 | I12: 2.282952 | J12: 3.030219 | K12: 0.7924810888
A13: 9 | B13: Eastern | C13: 3.731428 | D13: 3.362617 | E13: -0.368811 | G13: 9 | H13: 1.079664908 | I13: 2.282952 | J13: 3.362617 | K13: 2.596466197
A14: 10 | B14: South Wales | C14: 1.0084 | D14: 5.366338 | E14: 4.357938 | G14: 10 | H14: 3.083385806 | I14: 2.282952 | J14: 5.366338 | K14: 1.962709191
A15: 11 | B15: South East | C15: 6.908051 | D15: 5.915571 | E15: -0.99248 | G15: 11 | H15: 3.632618844 | I15: 2.282952 | J15: 5.915571 | K15: 1.930723098
A16: 12 | B16: London | C16: 8.989242 | D16: 8.392678 | E16: -0.596564 | G16: 12 | H16: 6.109725912 | I16: 2.282952 | J16: 8.392678 | K16: 1.089672292
A17: 13 | B17: Southern | C17: 8.364952 | D17: 8.06317 | E17: -0.301782 | G17: 13 | H17: 5.780217748 | I17: 2.282952 | J17: 8.06317 | K17: 3.326978141
A18: 14 | B18: South Western | C18: 7.66317 | D18: 10.947969 | E18: 3.284799 | G18: 14 | H18: 8.665017079 | I18: 2.282952 | J18: 10.947969 | K18: 2.698073171

Sheet T12 & Fig 4
A1: Table 12 - NHH Demand Tariff Changes | D1: Return to Index
A3: Zone | B3: Zone Name | C3: =CONCATENATE('T1'!B3," (p/kWh)") -> 2021/22 August (p/kWh) | D3: =CONCATENATE('T1'!C3," (p/kWh)") -> 2021/22 Draft (p/kWh) | E3: Change (p/kWh)
A4: 1 | B4: Northern Scotland | C4: 2.045854 | D4: 2.731383 | E4: =D4-C4 -> 0.685529
A5: 2 | B5: Southern Scotland | C5: 2.913497 | D5: 3.774643 | E5: =D5-C5 -> 0.861146
A6: 3 | B6: Northern | C6: 4.35713 | D6: 5.16877 | E6: 0.81164
A7: 4 | B7: North West | C7: 5.207812 | D7: 6.135768 | E7: 0.927956
A8: 5 | B8: Yorkshire | C8: 5.257421 | D8: 6.035617 | E8: 0.778196
A9: 6 | B9: N Wales & Mersey | C9: 5.393179 | D9: 6.122775 | E9: 0.729596
A10: 7 | B10: East Midlands | C10: 5.897278 | D10: 6.711876 | E10: 0.814598
A11: 8 | B11: Midlands | C11: 6.131826 | D11: 7.022124 | E11: 0.890298
A12: 9 | B12: Eastern | C12: 6.576802 | D12: 7.388941 | E12: 0.812139
A13: 10 | B13: South Wales | C13: 5.25966 | D13: 6.570524 | E13: 1.310864
A14: 11 | B14: South East | C14: 7.062878 | D14: 7.861029 | E14: 0.798151
A15: 12 | B15: London | C15: 5.580801 | D15: 6.340861 | E15: 0.76006
A16: 13 | B16: Southern | C16: 6.795285 | D16: 7.653066 | E16: 0.857781
A17: 14 | B17: South Western | C17: 7.157069 | D17: 8.596217 | E17: 1.439148
C27: -

Sheet T13
A1: Table 13 - Contracted and Modelled TEC | E1: Return to Index
B3: 2020/21 | C3: 2021/22 Tariffs
A4: Generation (GW) | B4: Final | C4: March | D4: August | E4: Draft | F4: Final
A5: Contracted TEC | B5: 84.9 | C5: 93.6 | D5: 92.7 | E5: 89.9
A6: Modelled Best View TEC | B6: 84.9 | C6: 85.8 | D6: 86.7 | E6: 89.9
A7: Chargeable TEC | B7: 70.7 | C7: 76.8 | D7: 76.9 | E7: 71.7

Sheet T14
A1: Table 14 - Interconnectors | G1: Return to Index
D3: Generation MW
D4: Generation Zone | E4: Transport Model Peak | F4: Transport Model Year Round | G4: Charging Base
A5: Interconnector | B5: Site | C5: Interconnected System
A7: IFA Interconnector | B7: Sellindge 400kV | C7: France | D7: 24 | E7: 0 | F7: 2000 | G7: 0
A8: ElecLink | B8: Sellindge 400kV | C8: France | D8: 24 | E8: 0 | F8: 1000 | G8: 0
A9: BritNed | B9: Grain 400kV | C9: Netherlands | D9: 24 | E9: 0 | F9: 1200 | G9: 0
A10: Belgium Interconnector (Nemo) | B10: Richborough 400kV | C10: Belgium | D10: 24 | E10: 0 | F10: 1020 | G10: 0
A11: East - West | B11: Connah's Quay 400kV | C11: Republic of Ireland | D11: 16 | E11: 0 | F11: 505 | G11: 0
A12: IFA2 Interconnector | B12: Chilling 400KV Substation | C12: France | D12: 26 | E12: 0 | F12: 1100 | G12: 0
A13: Moyle | B13: Auchencrosh 275kV | C13: Northern Ireland | D13: 10 | E13: 0 | F13: 490 | G13: 0
A14: NS Link | B14: Blyth | C14: Norway | D14: 13 | E14: 0 | F14: 1400 | G14: 0

Sheet T15
A1: Table 15 - Allowed Revenues | F1: Return to Index
B3: 2021/22 TNUoS Revenue
A4: £m Nominal | B4: ='T25-28'!D5 -> March Forecast | C4: ='T25-28'!E5 -> August Forecast | D4: ='T25-28'!F5 -> Nov Draft | E4: ='T25-28'!G5 -> Jan Final
A6: National Grid Electricity Transmission
A7: Price controlled revenue | B7: 1754.913464 | C7: 1753.723339 | D7: ='T25-28'!F23 -> 1949.722735
A8: Less income from connections | C8: 29.84753465 | D8: ='T25-28'!F24+'T25-28'!F25 -> 29.84753465
A9: NGET Income from TNUoS | B9: 1754.913464 | C9: =+C7-C8 -> 1723.875804 | D9: =+D7-D8 -> 1919.8752
A11: Scottish Power Transmission
A12: Price controlled revenue | B12: 389.4886927 | C12: 384.2112305 | D12: ='T25-28'!J23 -> 410.0545926
A13: Less income from connections | B13: 12.74566693 | C13: 12.74566693 | D13: ='T25-28'!J24 -> 19.45778006
A14: SPT Income from TNUoS | B14: 376.7430257 | C14: =+C12-C13 -> 371.4655635 | D14: =+D12-D13 -> 390.5968126
A16: SHE Transmission
A17: Price controlled revenue | B17: 377.4761422 | C17: 383.4022392 | D17: ='T25-28'!N23 -> 542.6390827
A18: Less income from connections | B18: 3.441875487 | C18: 3.441875487 | D18: ='T25-28'!N24 -> 2.899990023
A19: SHE Income from TNUoS | B19: 374.0342667 | C19: =+C17-C18 -> 379.9603637 | D19: =+D17-D18 -> 539.7390927
A21: National Grid Electricity System Operator
A22: Other Pass-through from TNUoS | B22: 17.44113319 | C22: 17.47310102 | D22: ='T25-28'!U7+'T25-28'!U6 -> 14.43328389
A24: Offshore (plus interconnector contribution / allowance) | B24: 529.9402718 | C24: 555.8050714 | D24: ='T25-28'!U9 -> 545.591719
A25: Total to Collect from TNUoS | B25: 3053.072161 | C25: =+C24+C23+C22+C19+C14+C9 -> 3048.579904 | D25: =+D24+D23+D22+D19+D14+D9 -> 3410.236109

Sheet T16
B1: Table 16 - Generation and Demand Revenue Proportions | G1: Return to Index
D3: 2021/22 Tariffs
B4: Code | C4: Revenue | D4: March | E4: August | F4: Draft | G4: Final
B6: CAPEC | C6: Limit on generation tariff (€/MWh) | D6: 2.5 | E6: 2.5 | F6: 2.5
B7: y | C7: Error Margin | D7: 0.16 | E7: 0.208 | F7: =E7 -> 0.208
B8: ER | C8: Exchange Rate (€/£) | D8: 1.119217191 | E8: 1.210793 | F8: =E8 -> 1.210793
B9: MAR | C9: Total Revenue (£m) | D9: 3053.115206 | E9: 3048.582334 | F9: ='T15'!D25 -> 3410.236109
B10: GO | C10: Generation Output (TWh) | D10: 199.820929 | E10: 222.8449535 | F10: 222.8449535
C11: Wider locational generator Revenue (£m) | D11: 403.0173988 | E11: 382.325169 | F11: ='T18'!F10 -> 366.397951
C12: Charges on assets required for connection (£m) | D12: 445.6314611 | E12: 461.9882222 | F12: ='T18'!F11+'T18'!F12+'T18'!F13 -> 449.2910368
B13: G | C13: % of revenue from generation | D13: 0.2687608221 | E13: 0.2710783839 | F13: =(MIN(F10*F6*(1-F7)/F8,F11)+F12)/F9 -> 0.2386074046
B14: D | C14: % of revenue from demand | D14: 0.7312391779 | E14: =1-E13 -> 0.7289216161 | F14: =1-F13 -> 0.7613925954
B15: G.R | C15: Revenue recovered from generation (£m) | D15: 820.5577528 | E15: 826.4047723 | F15: 813.7075869
B16: D.R | C16: Revenue recovered from demand (£m) | D16: 2232.557453 | E16: =E9-E15 -> 2222.177561 | F16: =F9-F15 -> 2596.528522

Sheet T17
A1: Table 17 - Charging Bases | E1: Return to Index
B3: 2021/22 Tariffs
A4: Charging Bases | B4: ='T13'!C4 -> March | C4: ='T13'!D4 -> August | D4: ='T13'!E4 -> Draft | E4: ='T13'!F4 -> Final
A5: Generation (GW) | B5: 70.7 | C5: 76.9 | D5: 71.7
A6: NHH Demand (4pm-7pm TWh) | B6: 23.97071993 | C6: 24.43353283 | D6: 24.64071346
A7: Net Charging
A8: Total Average Net Triad (GW) | B8: 43.20793736 | C8: 42.84261412 | D8: 43.32294131
A9: HH Demand Average Net Triad (GW) | B9: 12.61098914 | C9: 11.55354533 | D9: 12.29505237
A10: Gross charging
A11: Total Average Gross Triad (GW) | B11: 50.02789207 | C11: 50.15553394 | D11: 49.98183069
A12: HH Demand Average Gross Triad (GW) | B12: 19.43094386 | C12: 18.86646516 | D12: 18.95394174
A13: Embedded Generation Export (GW) | B13: 6.819954717 | C13: 7.312919824 | D13: 6.658889378

Sheet T18
B1: Table 18 - Residual Calculation | G1: Return to Index
D3: 2021/22 Tariffs
B4: Component | D4: ='T13'!C4 -> March | E4: ='T13'!D4 -> August | F4: ='T13'!E4 -> Draft | G4: ='T13'!F4 -> Final
B5: G | C5: Proportion of revenue recovered from generation (%) | D5: 0.2687608221 | E5: 0.1195363976 | F5: ='T16'!F13 -> 0.2386074046
B6: D | C6: Proportion of revenue recovered from demand (%) | D6: 0.7312391779 | E6: =1-E5 -> 0.8804636024 | F6: ='T16'!F14 -> 0.7613925954
B7: R | C7: Total TNUoS revenue (£m) | D7: 3053.115206 | E7: 3048.582334 | F7: 3410.237299
B8: Generation Residual
B9: RG | C9: Generator residual tariff (£/kW) | D9: -0.3659705743 | E9: -0.2327513396 | F9: -0.02764036881
B10: ZG | C10: Revenue recovered from the wider locational element of generator tariffs (£m) | D10: 403.0173988 | E10: 382.325169 | F10: 366.397951
B11: O | C11: Revenue recovered from offshore local tariffs (£m) | D11: 408.1996797 | E11: 426.882104 | F11: 422.6940441
B12: LG | C12: Revenue recovered from onshore local substation tariffs (£m) | D12: 19.52551825 | E12: 19.55159182 | F12: 11.44562985
B13: SG | C13: Revenue recovered from onshore local circuit tariffs (£m) | D13: 17.90626317 | E13: 15.55452645 | F13: 15.15136292
B14: BG | C14: Generator charging base (GW) | D14: 76.75783 | E14: 76.94314 | F14: 71.68504
B15: Gross Demand Residual
B16: RD | C16: Demand residual tariff (£/kW) | D16: 46.81663617 | E16: 46.55408474 | F16: 54.34251228
B17: ZD | C17: Revenue recovered from the locational element of demand tariffs (£m) | D17: -92.41715938 | E17: -99.17180591 | F17: -104.4763336
B18: EE | C18: Amount to be paid to Embedded Export Tariffs (£m) | D18: 17.16300923 | E18: 13.59561016 | F18: 15.13220237
B19: BD | C19: Demand Gross charging base (GW) | D19: 50.02789207 | E19: 50.15553394 | F19: 49.98183069

Sheet S1 - S2
A1: Table S1 & S2 – The effect of including CMP344 | J1: Return to Index
D4: 2021/22 Base Case | E4: 2021/22 CMP344 Sensitivity | F4: Change
B5: OFTO Local Revenue (£m) | D5: 422.6940441 | E5: 422.2639119 | F5: =E5-D5 -> -0.43013212
B6: Revenue from Generation (£m) | D6: 813.7075869 | E6: 813.2774548 | F6: =E6-D6 -> -0.43013212
B7: Revenue from Demand (£m) | D7: 2596.959844 | E7: 2599.770844 | F7: =E7-D7 -> 2.811
B8: Generation Residual | C8: £/kW | D8: -0.02764036881 | E8: -0.02764036881 | F8: =E8-D8 -> -2.376571162e-15
B9: Average Generation Tariff* | C9: £/kW | D9: 11.35114923 | E9: 11.34514893 | F9: =E9-D9 -> -0.006000305224
B10: Average HH demand tariff | C10: £/kW | D10: 52.460812 | E10: 52.52565825 | F10: 0.06484624997
B11: Demand Residual | C11: £/kW | D11: 54.342512 | E11: 54.40735849 | F11: 0.06484648899
B12: Average NHH demand tariff | C12: p/kWh | D12: 6.56362 | E12: 6.571785279 | F12: 0.008165279298
B13: Average EET tariff | C13: £/kW | D13: 2.272481 | E13: 2.272481417 | F13: 4.170935366e-07
B14: *N.B These generation tariffs include local tariffs
B18: Offshore Generator | C18: Tariff Component (£/kW) | F18: Change from base case (£/kW)
C19: Substation | D19: Circuit | E19: ETUoS | F19: Substation | G19: Circuit | H19: ETUoS
B20: Barrow | C20: 8.847343 | D20: 46.675227 | E20: 1.159009756 | F20: 0 | G20: 0 | H20: 0
B21: Burbo Bank | C21: 11.057328 | D21: 21.346582 | E21: 0 | F21: 0 | G21: 0 | H21: 0
B22: Dudgeon | C22: 16.213542 | D22: 25.417361 | E22: 0 | F22: 0 | G22: 0 | H22: 0
B23: Galloper | C23: 16.54949 | D23: 26.155193 | E23: 0 | F23: 0 | G23: 0 | H23: 0
B24: Greater Gabbard | C24: 16.455306 | D24: 38.045116 | E24: 0 | F24: 0 | G24: 0 | H24: 0
B25: Gunfleet | C25: 19.239008 | D25: 17.730507 | E25: 3.313933 | F25: 0 | G25: 0 | H25: 0
B26: Gwynt Y Mor | C26: 17.844372 | D26: 17.71059 | E26: 0 | F26: -0.190882 | G26: -0.183448 | H26: 0
B27: Humber Gateway | C27: 12.188327 | D27: 27.939147 | E27: 0 | F27: -0.306977 | G27: -0.671508 | H27: 0
B28: Lincs | C28: 16.95783 | D28: 66.640797 | E28: 0 | F28: 0 | G28: 0 | H28: 0
B29: London Array | C29: 11.475403 | D29: 39.308601 | E29: 0 | F29: 0 | G29: 0 | H29: 0
B30: Ormonde | C30: 27.175448 | D30: 50.7739 | E30: 0.404625 | F30: 0 | G30: 0 | H30: 0
B31: Race Bank | C31: 9.794833 | D31: 27.170573 | E31: 0 | F31: 0 | G31: 0 | H31: 0
B32: Robin Rigg | C32: -0.5839443083 | D32: 33.842704 | E32: 10.842987 | F32: 0 | G32: 0 | H32: 0
B33: Robin Rigg West | C33: -0.5839443083 | D33: 33.842704 | E33: 10.842987 | F33: 0 | G33: 0 | H33: 0
B34: Sheringham Shoal | C34: 25.429358 | D34: 29.93507 | E34: 0.6507004236 | F34: 0 | G34: 0 | H34: 0
B35: Thanet | C35: 19.382584 | D35: 36.292362 | E35: 0.8736850048 | F35: 0 | G35: 0 | H35: 0
B36: Walney 1 | C36: 23.476054 | D36: 46.909953 | E36: 0 | F36: 0 | G36: 0 | H36: 0
B37: Walney 2 | C37: 21.842513 | D37: 44.426566 | E37: 0 | F37: 0 | G37: 0 | H37: 0
B38: Walney 3 | C38: 10.061698 | D38: 20.359385 | E38: 0 | F38: 0 | G38: 0 | H38: 0
B39: Walney 4 | C39: 10.061698 | D39: 20.359385 | E39: 0 | F39: 0 | G39: 0 | H39: 0
B40: West of Duddon Sands | C40: 8.896479 | D40: 44.318265 | E40: 0 | F40: 0 | G40: 0 | H40: 0
B41: Westermost Rough | C41: 18.28621 | D41: 31.099818 | E41: 0 | F41: 0 | G41: 0 | H41: 0

Sheet S3
A1: Table S3 – The effect of including congestion management | F1: Return to Index
D4: 2021/22 Base Case | E4: 2021/22 Congestion Management Sensitivity | F4: Change
B5: Generation Residual | C5: £/kW | D5: ='T1'!C4 -> -0.02764036881 | E5: -7.666583003 | F5: =E5-D5 -> -7.638942634
B6: Average Generation Tariff* | C6: £/kW | D6: ='T1'!C5 -> 11.35114923 | E6: 3.7122066 | F6: =E6-D6 -> -7.638942634
B7: Average HH demand tariff | C7: £/kW | D7: ='T8'!D4 -> 52.460812 | E7: 63.41675145 | F7: 10.95593945
B8: Demand Residual | C8: £/kW | D8: ='T8'!D5 -> 54.342512 | E8: 65.29845169 | F8: 10.95593969
B9: Average NHH demand tariff | C9: p/kWh | D9: ='T8'!D13 -> 6.56362 | E9: 7.943205107 | F9: 1.379585107
B10: Average EET tariff | C10: £/kW | D10: ='T8'!D7 -> 2.272481 | E10: 2.272481417 | F10: 4.170935366e-07
B11: Revenue from Generation | C11: £m | D11: 813.7075869 | E11: 266.1096786 | F11: -547.5979083
B12: Revenue from Demand | C12: £m | D12: 2596.529712 | E12: 3144.12762 | F12: 547.5979083
B13: *N.B These generation tariffs include local tariffs

Sheet S4
A1: Table S4 - Generation revenue breakdown and adjustment tariff under GOS sensitivity | I1: Return to Index
B6: NGET Base Revenue (£m) | C6: Other NGET revenue items (£m)* | D6: SPT Base Revenue (£m) | E6: Other SPT revenue items (£m)* | F6: SHETL Base Revenue (£m) | G6: Other SHETL revenue items (£m)* | H6: Other ESO revenue items (£m)** | I6: Total (£m)
A7: Base case (£m) | B7: 1961.805423 | C7: -41.93022292 | D7: 378.1647789 | E7: 12.43203362 | F7: 541.7390827 | G7: -1.999990023 | H7: 560.0250029 | I7: =SUM(B7:H7) -> 3410.236109
A8: Assumption on financial parameters*** | B8: ESO assumes that onshore TOs based their revenue forecast on the same annuity and overhead factors as in RIIO-T1 (5.81%+ 1.8%). The sensitivity analysis uses an alternative annuity factor (4.79%) which is in line with CMA's decision on water utilities price control, and same overhead factor (1.8%) as in RIIO-T1
A9: Revenue Sensitivity (£m) | B9: =B7*(4.79+1.8)/(5.81+1.8) -> 1698.85647 | C9: =C7 -> -41.93022292 | D9: =D7*(4.79+1.8)/(5.81+1.8) -> 327.4777783 | E9: =E7 -> 12.43203362 | F9: =F7*(4.79+1.8)/(5.81+1.8) -> 469.1275368 | G9: =G7 -> -1.999990023 | H9: =H7 -> 560.0250029 | I9: =SUM(B9:H9) -> 3023.988609
A10: Variation (£m) | B10: =B9-B7 -> -262.9489529 | C10: 0 | D10: -50.68700059 | E10: 0 | F10: -72.61154591 | G10: 0 | H10: 0 | I10: -386.2474994
A12: Note | B12: * Onshore TOs' other revenue items include pass-through (business rate, licence fee etc), output incentives and other miscellaneous items, minus pre-vesting charge
B13: ** ESO's other revenue items include OFTO revenue, interconnector adjustment, network innovation competition (NIC), and other miscellaneous items
B14: *** The sensitivity analysis is based on the following assumptions -
B15: 1. Assuming "other revenue items" in onshore TOs' revenue breakdown, remain the same as in the August forecast.
B16: 2. Assuming generic asset life of 50 years
B17: 3. Assuming onshore TOs' base revenue figures reflect regulated asset base only, and is proportional to the total of (annuity factor + overhead factor).

Sheet S5
A1: Table S5 - Generation revenue breakdown and adjustment tariff under GOS sensitivity | I1: Return to Index
B6: Peak Security (£m) | C6: Year Round Shared (£m) | D6: Year Round Not Shared (£m) | E6: Residual (£m) | F6: Onshore Local Circuit (£m) | G6: Onshore Local Substation (£m) | H6: Offshore Local (£m) | I6: Total (£m) | J6: Generation adjustment factor (residual) (£/kW)
A7: Base case | B7: 108.9593874 | C7: 109.1775791 | D7: 148.2609845 | E7: -1.981400944 | F7: 15.15136292 | G7: 11.44562985 | H7: 422.6940441 | I7: 813.7075869 | J7: -0.02764036881
A8: GOS sensitivity | B8: 108.9593874 | C8: 109.1775791 | D8: 148.2609845 | E8: -4.809396721 | F8: 12.74805808 | G8: 11.02093891 | H8: 422.6940441 | I8: 810.8795911 | J8: =E8/(E7/J7) -> -0.06709066105
A9: Variation | B9: 0 | C9: 0 | D9: 0 | E9: -2.827995777 | F9: -2.403304836 | G9: -0.4246909414 | H9: 0 | I9: -2.827995777 | J9: =J8-J7 -> -0.03945029224

Sheet S6 - S7
A1: Table S6 - Demand tariffs under security factor at 2d.p. | G1: Return to Index
A3: Zone | B3: Zone Name | C3: HH Demand Tariff (£/kW) | D3: NHH Demand Tariff (p/kWh) | E3: Embedded Export Tariff (£/kW)
A4: 1 | B4: Northern Scotland | C4: 21.454043 | D4: 2.840242 | E4: 0
A5: 2 | B5: Southern Scotland | C5: 30.406702 | D5: 3.853056 | E5: 0
A6: 3 | B6: Northern | C6: 42.589884 | D6: 5.210601 | E6: 0
A7: 4 | B7: North West | C7: 49.203725 | D7: 6.159754 | E7: 0
A8: 5 | B8: Yorkshire | C8: 49.865507 | D8: 6.057063 | E8: 0
A9: 6 | B9: N Wales & Mersey | C9: 50.62448 | D9: 6.142103 | E9: 0
A10: 7 | B10: East Midlands | C10: 53.60954 | D10: 6.723347 | E10: 1.476834
A11: 8 | B11: Midlands | C11: 55.146319 | D11: 7.029331 | E11: 3.013613
A12: 9 | B12: Eastern | C12: 55.47133 | D12: 7.395494 | E12: 3.338624
A13: 10 | B13: South Wales | C13: 57.430524 | D13: 6.571053 | E13: 5.297818
A14: 11 | B14: South East | C14: 57.967552 | D14: 7.860002 | E14: 5.834846
A15: 12 | B15: London | C15: 60.389612 | D15: 6.334292 | E15: 8.256906
A16: 13 | B16: Southern | C16: 60.067426 | D16: 7.646027 | E16: 7.93472
A17: 14 | B17: South Western | C17: 62.888119 | D17: 8.579926 | E17: 10.755413
A20: Table S7 - Generation tariffs under security factor at 2d.p.
C22: Tariffs (£/kW) | G22: Example tariffs for a generator of each technology type
C24: System Peak | D24: Shared Year Round | E24: Not Shared Year Round | F24: Residual | G24: Conventional Carbon 80% | H24: Conventional Low Carbon 80% | I24: Intermittent 40%
A25: Zone | B25: Zone Name | G25: Tariff (£/kW) | H25: Tariff (£/kW) | I25: Tariff (£/kW)
A26: 1 | B26: North Scotland | C26: 4.139437 | D26: 19.913375 | E26: 18.906466 | F26: 0 | G26: 35.1953098 | H26: 38.976603 | I26: 26.871816
A27: 2 | B27: East Aberdeenshire | C27: 3.162051 | D27: 10.510472 | E27: 18.906466 | F27: 0 | G27: 26.6956014 | H27: 30.4768946 | I27: 23.1106548
A28: 3 | B28: Western Highlands | C28: 3.85421 | D28: 18.18352 | E28: 18.19577 | F28: 0 | G28: 32.957642 | H28: 36.596796 | I28: 25.469178
A29: 4 | B29: Skye and Lochalsh | C29: -0.60223 | D29: 18.18352 | E29: 19.976366 | F29: 0 | G29: 29.9256788 | H29: 33.920952 | I29: 27.249774
A30: 5 | B30: Eastern Grampian and Tayside | C30: 4.642908 | D30: 13.415803 | E30: 15.344176 | F30: 0 | G30: 27.6508912 | H30: 30.7197264 | I30: 20.7104972
A31: 6 | B31: Central Grampian | C31: 4.28543 | D31: 14.34837 | E31: 16.414734 | F31: 0 | G31: 28.8959132 | H31: 32.17886 | I31: 22.154082
A32: 7 | B32: Argyll | C32: 2.653087 | D32: 12.411813 | E32: 25.07574 | F32: 0 | G32: 32.6431294 | H32: 37.6582774 | I32: 30.0404652
A33: 8 | B33: The Trossachs | C33: 3.770403 | D33: 12.411813 | E33: 14.15008 | F33: 0 | G33: 25.0199174 | H33: 27.8499334 | I33: 19.1148052
A34: 9 | B34: Stirlingshire and Fife | C34: 2.675011 | D34: 10.967509 | E34: 12.92111 | F34: 0 | G34: 21.7859062 | H34: 24.3701282 | I34: 17.3081136
A35: 10 | B35: South West Scotlands | C35: 2.962297 | D35: 11.319605 | E35: 13.192732 | F35: 0 | G35: 22.5721666 | H35: 25.210713 | I35: 17.720574
A36: 11 | B36: Lothian and Borders | C36: 2.929709 | D36: 11.319605 | E36: 6.531796 | F36: 0 | G36: 17.2108298 | H36: 18.517189 | I36: 11.059638
A37: 12 | B37: Solway and Cheviot | C37: 2.532332 | D37: 7.629916 | E37: 7.318295 | F37: 0 | G37: 14.4909008 | H37: 15.9545598 | I37: 10.3702614
A38: 13 | B38: North East England | C38: 3.356007 | D38: 5.905974 | E38: 4.419811 | F38: 0 | G38: 11.616635 | H38: 12.5005972 | I38: 6.7822006
A39: 14 | B39: North Lancashire and The Lakes | C39: 2.492842 | D39: 5.905974 | E39: 1.25421 | F39: 0 | G39: 8.2209892 | H39: 8.4718312 | I39: 3.6165996
A40: 15 | B40: South Lancashire, Yorkshire and Humber | C40: 3.803444 | D40: 2.404514 | E40: 0.349126 | F40: 0 | G40: 6.006356 | H40: 6.0761812 | I40: 1.3109316
A41: 16 | B41: North Midlands and North Wales | C41: 3.17806 | D41: 0.867422 | E41: 0 | F41: 0 | G41: 3.8719976 | H41: 3.8719976 | I41: 0.3469688
A42: 17 | B42: South Lincolnshire and North Norfolk | C42: 1.315505 | D42: 1.555689 | E42: 0 | F42: 0 | G42: 2.5600562 | H42: 2.5600562 | I42: 0.6222756
A43: 18 | B43: Mid Wales and The Midlands | C43: 1.630226 | D43: 1.794246 | E43: 0 | F43: 0 | G43: 3.0656228 | H43: 3.0656228 | I43: 0.7176984
A44: 19 | B44: Anglesey and Snowdon | C44: 4.805524 | D44: 1.010675 | E44: 0 | F44: 0 | G44: 5.614064 | H44: 5.614064 | I44: 0.40427
A45: 20 | B45: Pembrokeshire | C45: 7.461738 | D45: -6.322078 | E45: 0 | F45: 0 | G45: 2.4040756 | H45: 2.4040756 | I45: -2.5288312
A46: 21 | B46: South Wales & Gloucester | C46: 3.422229 | D46: -6.658466 | E46: 0 | F46: 0 | G46: -1.9045438 | H46: -1.9045438 | I46: -2.6633864
A47: 22 | B47: Cotswold | C47: 2.282147 | D47: 3.527311 | E47: -8.48295 | F47: 0 | G47: -1.6823642 | H47: -3.3789542 | I47: -7.0720256
A48: 23 | B48: Central London | C48: -3.692985 | D48: 3.527311 | E48: -5.529666 | F48: 0 | G48: -5.294869 | H48: -6.4008022 | I48: -4.1187416
A49: 24 | B49: Essex and Kent | C49: -3.343043 | D49: 3.527311 | E49: 0 | F49: 0 | G49: -0.5211942 | H49: -0.5211942 | I49: 1.4109244
A50: 25 | B50: Oxfordshire, Surrey and Sussex | C50: -0.98862 | D50: -1.881891 | E50: 0 | F50: 0 | G50: -2.4941328 | H50: -2.4941328 | I50: -0.7527564
A51: 26 | B51: Somerset and Wessex | C51: -2.254034 | D51: -3.320635 | E51: 0 | F51: 0 | G51: -4.910542 | H51: -4.910542 | I51: -1.328254
A52: 27 | B52: West Devon and Cornwall | C52: -2.533072 | D52: -8.33817 | E52: 0 | F52: 0 | G52: -9.203608 | H52: -9.203608 | I52: -3.335268

Sheet S8 - S9
A1: Table S8 - Demand tariffs under security factor at 8d.p. | G1: Return to Index
A3: Zone | B3: Zone Name | C3: HH Demand Tariff (£/kW) | D3: NHH Demand Tariff (p/kWh) | E3: Embedded Export Tariff (£/kW)
A4: 1 | B4: Northern Scotland | C4: 21.551513 | D4: 2.853145 | E4: 0
A5: 2 | B5: Southern Scotland | C5: 30.481163 | D5: 3.862492 | E5: 0
A6: 3 | B6: Northern | C6: 42.633033 | D6: 5.21588 | E6: 0
A7: 4 | B7: North West | C7: 49.229875 | D7: 6.163028 | E7: 0
A8: 5 | B8: Yorkshire | C8: 49.889956 | D8: 6.060033 | E8: 0
A9: 6 | B9: N Wales & Mersey | C9: 50.646978 | D9: 6.144833 | E9: 0
A10: 7 | B10: East Midlands | C10: 53.624366 | D10: 6.725207 | E10: 1.478906
A11: 8 | B11: Midlands | C11: 55.157196 | D11: 7.030718 | E11: 3.011735
A12: 9 | B12: Eastern | C12: 55.481372 | D12: 7.396833 | E12: 3.335911
A13: 10 | B13: South Wales | C13: 57.43553 | D13: 6.571626 | E13: 5.29007
A14: 11 | B14: South East | C14: 57.971178 | D14: 7.860493 | E14: 5.825717
A15: 12 | B15: London | C15: 60.387013 | D15: 6.33402 | E15: 8.241552
A16: 13 | B16: Southern | C16: 60.065655 | D16: 7.645801 | E16: 7.920195
A17: 14 | B17: South Western | C17: 62.879098 | D17: 8.578695 | E17: 10.733638
A20: Table S9 - Generation tariffs under security factor at 8d.p.
C22: Tariffs (£/kW) | G22: Example tariffs for a generator of each technology type
C24: System Peak | D24: Shared Year Round | E24: Not Shared Year Round | F24: Residual | G24: Conventional Carbon 80% | H24: Conventional Low Carbon 80% | I24: Intermittent 40%
A25: Zone | B25: Zone Name | G25: Tariff (£/kW) | H25: Tariff (£/kW) | I25: Tariff (£/kW)
A26: 1 | B26: North Scotland | C26: 4.128798 | D26: 19.862195 | E26: 18.857873 | F26: 0 | G26: 35.1048524 | H26: 38.876427 | I26: 26.802751
A27: 2 | B27: East Aberdeenshire | C27: 3.153924 | D27: 10.483458 | E27: 18.857873 | F27: 0 | G27: 26.6269888 | H27: 30.3985634 | I27: 23.0512562
A28: 3 | B28: Western Highlands | C28: 3.844304 | D28: 18.136786 | E28: 18.149004 | F28: 0 | G28: 32.872936 | H28: 36.5027368 | I28: 25.4037184
A29: 4 | B29: Skye and Lochalsh | C29: -0.600682 | D29: 18.136786 | E29: 19.925024 | F29: 0 | G29: 29.848766 | H29: 33.8337708 | I29: 27.1797384
A30: 5 | B30: Eastern Grampian and Tayside | C30: 4.630975 | D30: 13.381323 | E30: 15.304739 | F30: 0 | G30: 27.5798246 | H30: 30.6407724 | I30: 20.6572682
A31: 6 | B31: Central Grampian | C31: 4.274415 | D31: 14.311493 | E31: 16.372545 | F31: 0 | G31: 28.8216454 | H31: 32.0961544 | I31: 22.0971422
A32: 7 | B32: Argyll | C32: 2.646269 | D32: 12.379913 | E32: 25.011292 | F32: 0 | G32: 32.559233 | H32: 37.5614914 | I32: 29.9632572
A33: 8 | B33: The Trossachs | C33: 3.760713 | D33: 12.379913 | E33: 14.113713 | F33: 0 | G33: 24.9556138 | H33: 27.7783564 | I33: 19.0656782
A34: 9 | B34: Stirlingshire and Fife | C34: 2.668135 | D34: 10.939321 | E34: 12.887901 | F34: 0 | G34: 21.7299126 | H34: 24.3074928 | I34: 17.2636294
A35: 10 | B35: South West Scotlands | C35: 2.954684 | D35: 11.290512 | E35: 13.158825 | F35: 0 | G35: 22.5141536 | H35: 25.1459186 | I35: 17.6750298
A36: 11 | B36: Lothian and Borders | C36: 2.92218 | D36: 11.290512 | E36: 6.515009 | F36: 0 | G36: 17.1665968 | H36: 18.4695986 | I36: 11.0312138
A37: 12 | B37: Solway and Cheviot | C37: 2.525823 | D37: 7.610306 | E37: 7.299486 | F37: 0 | G37: 14.4536566 | H37: 15.9135538 | I37: 10.3436084
A38: 13 | B38: North East England | C38: 3.347382 | D38: 5.890795 | E38: 4.408451 | F38: 0 | G38: 11.5867788 | H38: 12.468469 | I38: 6.764769
A39: 14 | B39: North Lancashire and The Lakes | C39: 2.486435 | D39: 5.890795 | E39: 1.250986 | F39: 0 | G39: 8.1998598 | H39: 8.450057 | I39: 3.607304
A40: 15 | B40: South Lancashire, Yorkshire and Humber | C40: 3.793669 | D40: 2.398334 | E40: 0.348228 | F40: 0 | G40: 5.9909186 | H40: 6.0605642 | I40: 1.3075616
A41: 16 | B41: North Midlands and North Wales | C41: 3.169892 | D41: 0.865193 | E41: 0 | F41: 0 | G41: 3.8620464 | H41: 3.8620464 | I41: 0.3460772
A42: 17 | B42: South Lincolnshire and North Norfolk | C42: 1.312124 | D42: 1.551691 | E42: 0 | F42: 0 | G42: 2.5534768 | H42: 2.5534768 | I42: 0.6206764
A43: 18 | B43: Mid Wales and The Midlands | C43: 1.626037 | D43: 1.789635 | E43: 0 | F43: 0 | G43: 3.057745 | H43: 3.057745 | I43: 0.715854
A44: 19 | B44: Anglesey and Snowdon | C44: 4.793173 | D44: 1.008078 | E44: 0 | F44: 0 | G44: 5.5996354 | H44: 5.5996354 | I44: 0.4032312
A45: 20 | B45: Pembrokeshire | C45: 7.44256 | D45: -6.305829 | E45: 0 | F45: 0 | G45: 2.3978968 | H45: 2.3978968 | I45: -2.5223316
A46: 21 | B46: South Wales & Gloucester | C46: 3.413434 | D46: -6.641353 | E46: 0 | F46: 0 | G46: -1.8996484 | H46: -1.8996484 | I46: -2.6565412
A47: 22 | B47: Cotswold | C47: 2.276282 | D47: 3.518245 | E47: -8.461148 | F47: 0 | G47: -1.6780404 | H47: -3.37027 | I47: -7.05385
A48: 23 | B48: Central London | C48: -3.683494 | D48: 3.518245 | E48: -5.515454 | F48: 0 | G48: -5.2812612 | H48: -6.384352 | I48: -4.108156
A49: 24 | B49: Essex and Kent | C49: -3.334451 | D49: 3.518245 | E49: 0 | F49: 0 | G49: -0.519855 | H49: -0.519855 | I49: 1.407298
A50: 25 | B50: Oxfordshire, Surrey and Sussex | C50: -0.986079 | D50: -1.877054 | E50: 0 | F50: 0 | G50: -2.4877222 | H50: -2.4877222 | I50: -0.7508216
A51: 26 | B51: Somerset and Wessex | C51: -2.248241 | D51: -3.312101 | E51: 0 | F51: 0 | G51: -4.8979218 | H51: -4.8979218 | I51: -1.3248404
A52: 27 | B52: West Devon and Cornwall | C52: -2.526562 | D52: -8.31674 | E52: 0 | F52: 0 | G52: -9.179954 | H52: -9.179954 | I52: -3.326696

Sheet S10
A1: Table S10 - Summary of Demand Tariffs (Base Case vs RIIO-2 EC&F Update)
B3: HH Tariffs | C3: 2021/22 Draft (Base Case) | D3: 2021/22 Draft (EC&F RIIO-2 Update) | E3: Change
B4: Average Tariff (£/kW) | C4: 52.460812 | D4: 52.628548 | E4: 0.167736
B5: Residual (£/kW) | C5: 54.342512 | D5: 55.895627 | E5: 1.553115
B6: EET | C6: 2021/22 Draft (Base Case) | D6: 2021/22 Draft (EC&F RIIO-2 Update) | E6: Change
B7: Average Tariff (£/kW) | C7: 2.272481 | D7: 3.215122 | E7: 0.942641
B8: Phased residual (£/kW) | C8: 0 | D8: 0 | E8: 0
B9: AGIC (£/kW) | C9: 2.282952 | D9: 2.282952 | E9: 0
B10: Embedded Export Volume (GW) | C10: 6.658889378 | D10: 6.658889378 | E10: 0
B11: Total Credit (£m) | C11: 15.13220237 | D11: 21.40914243 | E11: 6.276940065
B12: NHH Tariffs | C12: 2021/22 Draft (Base Case) | D12: 2021/22 Draft (EC&F RIIO-2 Update) | E12: Change
B13: Average (p/kWh) | C13: 6.56362 | D13: 6.57021 | E13: 0.00659

Sheet S11 & Fig S1
A1: Table S11 - Change in HH Demand Tariffs (Base Case vs RIIO-2 EC&F Update) | H1: Figure S1 - HH Demand Tariffs (Base Case vs RIIO-2 EC&F Update)
A3: Zone | B3: Zone Name | C3: 2021/22 Draft (£/kW) | D3: 2021/22 Draft (£/kW) (EC&F RIIO-2 Update) | E3: Change (£/kW) | F3: Change in Residual (£/kW)
A4: 1 | B4: Northern Scotland | C4: 20.631769 | D4: 0 | E4: -20.631769 | F4: 1.553115
A5: 2 | B5: Southern Scotland | C5: 29.787898 | D5: 13.589573 | E5: -16.198325 | F5: 1.553115
A6: 3 | B6: Northern | C6: 42.247971 | D6: 35.596862 | E6: -6.651109 | F6: 1.553115
A7: 4 | B7: North West | C7: 49.012126 | D7: 47.3391 | E7: -1.673026 | F7: 1.553115
A8: 5 | B8: Yorkshire | C8: 49.688949 | D8: 48.144849 | E8: -1.5441 | F8: 1.553115
A9: 6 | B9: N Wales & Mersey | C9: 50.465171 | D9: 49.499243 | E9: -0.965928 | F9: 1.553115
A10: 7 | B10: East Midlands | C10: 53.518073 | D10: 54.851803 | E10: 1.33373 | F10: 1.553115
A11: 8 | B11: Midlands | C11: 55.089779 | D11: 57.31624 | E11: 2.226461 | F11: 1.553115
A12: 9 | B12: Eastern | C12: 55.422177 | D12: 58.915563 | E12: 3.493386 | F12: 1.553115
A13: 10 | B13: South Wales | C13: 57.425898 | D13: 60.788586 | E13: 3.362688 | F13: 1.553115
A14: 11 | B14: South East | C14: 57.975131 | D14: 61.881059 | E14: 3.905928 | F14: 1.553115
A15: 12 | B15: London | C15: 60.452238 | D15: 64.39036 | E15: 3.938122 | F15: 1.553115
A16: 13 | B16: Southern | C16: 60.12273 | D16: 65.280455 | E16: 5.157725 | F16: 1.553115 | H16: Table 14
A17: 14 | B17: South Western | C17: 63.007529 | D17: 70.592401 | E17: 7.584872 | F17: 1.553115
A20: Zone | B20: Peak (£/kW) | C20: Year Round (£/kW) | D20: Residual £/kW | E20: Small Gen Discount (£/kW) | F20: 2021/22 Draft (£/kW)
A21: 1 | B21: -2.118692056 | C21: -55.00626458 | D21: 55.8956274 | E21: 0 | F21: 0
A22: 2 | B22: -4.145936817 | C22: -38.16011808 | D22: 55.8956274 | E22: 0 | F22: 13.589573
A23: 3 | B23: -5.23424087 | C23: -15.06452495 | D23: 55.8956274 | E23: 0 | F23: 35.596862
A24: 4 | B24: -3.643162059 | C24: -4.913365635 | D24: 55.8956274 | E24: 0 | F24: 47.3391
A25: 5 | B25: -4.09283385 | C25: -3.657944597 | D25: 55.8956274 | E25: 0 | F25: 48.144849
A26: 6 | B26: -3.764532307 | C26: -2.631851806 | D26: 55.8956274 | E26: 0 | F26: 49.499243
A27: 7 | B27: -3.51513476 | C27: 2.471310622 | D27: 55.8956274 | E27: 0 | F27: 54.851803
A28: 8 | B28: -2.970997594 | C28: 4.39161031 | D28: 55.8956274 | E28: 0 | F28: 57.31624
A29: 9 | B29: 2.754896858 | C29: 0.2650382721 | D29: 55.8956274 | E29: 0 | F29: 58.915563
A30: 10 | B30: -6.266713785 | C30: 11.15967261 | D30: 55.8956274 | E30: 0 | F30: 60.788586
A31: 11 | B31: 5.614988819 | C31: 0.3704422863 | D31: 55.8956274 | E31: 0 | F31: 61.881059
A32: 12 | B32: 6.440818915 | C32: 2.053913591 | D32: 55.8956274 | E32: 0 | F32: 64.39036
A33: 13 | B33: 3.465399476 | C33: 5.919428042 | D33: 55.8956274 | E33: 0 | F33: 65.280455
A34: 14 | B34: 2.631065749 | C34: 12.06570817 | D34: 55.8956274 | E34: 0 | F34: 70.592401

Sheet S12 & Fig S2
A1: Table S12 - Embedded Export Tariff (Base Case vs RIIO-2 EC&F Update) | G1: Figure S2 - Embedded Export Tariff (Base Case vs RIIO-2 EC&F Update)
A4: Zone | B4: Zone Name | C4: 2021/22 Draft (£/kW) | D4: 2021/22 Draft (£/kW) (EC&F RIIO-2 Update) | E4: Change (£/kW)
A5: 1 | B5: Northern Scotland | C5: 0 | D5: 0 | E5: 0
A6: 2 | B6: Southern Scotland | C6: 0 | D6: 0 | E6: 0
A7: 3 | B7: Northern | C7: 0 | D7: 0 | E7: 0
A8: 4 | B8: North West | C8: 0 | D8: 0 | E8: 0
A9: 5 | B9: Yorkshire | C9: 0 | D9: 0 | E9: 0
A10: 6 | B10: N Wales & Mersey | C10: 0 | D10: 0 | E10: 0
A11: 7 | B11: East Midlands | C11: 1.458513 | D11: 1.239128 | E11: -0.219385
A12: 8 | B12: Midlands | C12: 3.030219 | D12: 3.703565 | E12: 0.673346
A13: 9 | B13: Eastern | C13: 3.362617 | D13: 5.302887 | E13: 1.94027
A14: 10 | B14: South Wales | C14: 5.366338 | D14: 7.175911 | E14: 1.809573
A15: 11 | B15: South East | C15: 5.915571 | D15: 8.268383 | E15: 2.352812
A16: 12 | B16: London | C16: 8.392678 | D16: 10.777685 | E16: 2.385007
A17: 13 | B17: Southern | C17: 8.06317 | D17: 11.66778 | E17: 3.60461
A18: 14 | B18: South Western | C18: 10.947969 | D18: 16.979726 | E18: 6.031757
A20: Zone | B20: EET Locational £/kW | C20: AGIC £/kW | D20: 2021/22 Phased Residual £/kW | E20: Final Tariff £/kW | F20: EET Revenue £m
A21: 1 | B21: -57.12495664 | C21: 2.282952 | D21: 0 | E21: 0 | F21: 0
A22: 2 | B22: -42.3060549 | C22: 2.282952 | D22: 0 | E22: 0 | F22: 0
A23: 3 | B23: -20.29876582 | C23: 2.282952 | D23: 0 | E23: 0 | F23: 0
A24: 4 | B24: -8.556527694 | C24: 2.282952 | D24: 0 | E24: 0 | F24: 0
A25: 5 | B25: -7.750778446 | C25: 2.282952 | D25: 0 | E25: 0 | F25: 0
A26: 6 | B26: -6.396384113 | C26: 2.282952 | D26: 0 | E26: 0 | F26: 0
A27: 7 | B27: -1.043824138 | C27: 2.282952 | D27: 0 | E27: 1.239128 | F27: 0.6245277759
A28: 8 | B28: 1.420612715 | C28: 2.282952 | D28: 0 | E28: 3.703565 | F28: 0.9685785876
A29: 9 | B29: 3.01993513 | C29: 2.282952 | D29: 0 | E29: 5.302887 | F29: 4.094658284
A30: 10 | B30: 4.892958823 | C30: 2.282952 | D30: 0 | E30: 7.175911 | F30: 2.62455079
A31: 11 | B31: 5.985431105 | C31: 2.282952 | D31: 0 | E31: 8.268383 | F31: 2.6986336
A32: 12 | B32: 8.494732506 | C32: 2.282952 | D32: 0 | E32: 10.777685 | F32: 1.399332168
A33: 13 | B33: 9.384827518 | C33: 2.282952 | D33: 0 | E33: 11.66778 | F33: 4.814291231
A34: 14 | B34: 14.69677391 | C34: 2.282952 | D34: 0 | E34: 16.979726 | F34: 4.184569998

Sheet S13 & Fig S3
A1: Table S13 - NHH Demand Tariff Changes (Base Case vs RIIO-2 EC&F Update) | G1: Figure S3 - NHH Demand Tariffs (Base Case vs RIIO-2 EC&F Update)
A3: Zone | B3: Zone Name | C3: 2018/19 Feb Forecast (p/kWh) | D3: 2021/22 Draft (p/kWh) | E3: 2021/22 Draft (p/kWh) (EC&F RIIO-2 Update) | F3: Change (p/kWh)
A4: 1 | B4: Northern Scotland | D4: 2.045854 | E4: -0.162748 | F4: -2.208602 | H4: 0
A5: 2 | B5: Southern Scotland | D5: 2.913497 | E5: 1.722034 | F5: -1.191463
A6: 3 | B6: Northern | D6: 4.35713 | E6: 4.355049 | F6: -0.002081
A7: 4 | B7: North West | D7: 5.207812 | E7: 5.926324 | F7: 0.718512
A8: 5 | B8: Yorkshire | D8: 5.257421 | E8: 5.848058 | F8: 0.590637
A9: 6 | B9: N Wales & Mersey | D9: 5.393179 | E9: 6.005582 | F9: 0.612403
A10: 7 | B10: East Midlands | D10: 5.897278 | E10: 6.879143 | F10: 0.981865
A11: 8 | B11: Midlands | D11: 6.131826 | E11: 7.305924 | F11: 1.174098
A12: 9 | B12: Eastern | D12: 6.576802 | E12: 7.854683 | F12: 1.277881
A13: 10 | B13: South Wales | D13: 5.25966 | E13: 6.955274 | F13: 1.695614
A14: 11 | B14: South East | D14: 7.062878 | E14: 8.390646 | F14: 1.327768
A15: 12 | B15: London | D15: 5.580801 | E15: 6.753932 | F15: 1.173131
A16: 13 | B16: Southern | D16: 6.795285 | E16: 8.309597 | F16: 1.514312
A17: 14 | B17: South Western | D17: 7.157069 | E17: 9.631033 | F17: 2.473964

Sheet S14
A1: Table S14 - Changes to Average Tariffs (Base Case vs RIIO-2 EC&F Update)
A3: Generation Tariffs (£/kW) | B3: 2021/22 Draft | C3: 2021/22 Draft (EC&F RIIO-2 Update) | D3: Change
A4: Residual | B4: -0.02764036881 | C4: -3.408830742 | D4: -3.381190373
A5: Average Generation Tariff | B5: 11.35114923 | C5: 11.37170843 | D5: 0.0205591932 | E5: N.B. These generation average tariffs include local tariffs

Sheet S15 & Fig S4
A1: Table S15 - Generation Wider Tariffs (Base Case vs RIIO-2 EC&F Update) | L1: Figure S4 - Generation Wider Tariffs Profile (Base Case vs RIIO-2 EC&F Update)
G2: Example tariffs for a generator of each technology type:
C3: System Peak | D3: Shared Year Round | E3: Not Shared Year Round | F3: Residual | G3: Conventional Carbon 80% | H3: Conventional Low Carbon 80% | I3: Intermittent 40%
A4: Zone | B4: Zone Name | C4: Tariff (£/kW) | D4: Tariff (£/kW) | E4: Tariff (£/kW) | F4: Tariff (£/kW) | G4: Tariff (£/kW) | H4: Tariff (£/kW) | I4: Tariff (£/kW)
A5: 1 | B5: North Scotland | C5: 7.036444 | D5: 35.271266 | E5: 33.685495 | F5: -3.408831 | G5: 58.7930218 | H5: 65.5301208 | I5: 44.3851704
A6: 2 | B6: East Aberdeenshire | C6: 4.690311 | D6: 17.852517 | E6: 33.685495 | F6: -3.408831 | G6: 42.5118896 | H6: 49.2489886 | I6: 37.4176708
A7: 3 | B7: Western Highlands | C7: 6.647819 | D7: 32.370151 | E7: 32.493597 | F7: -3.408831 | G7: 55.1299864 | H7: 61.6287058 | I7: 42.0328264
A8: 4 | B8: Skye and Lochalsh | C8: -9.730408 | D8: 32.370151 | E8: 39.208484 | F8: -3.408831 | G8: 44.123669 | H8: 51.9653658 | I8: 48.7477134
A9: 5 | B9: Eastern Grampian and Tayside | C9: 9.837533 | D9: 23.956783 | E9: 27.461522 | F9: -3.408831 | G9: 47.563346 | H9: 53.0556504 | I9: 33.6354042
A10: 6 | B10: Central Grampian | C10: 7.745847 | D10: 27.076512 | E10: 31.042876 | F10: -3.408831 | G10: 50.8325264 | H10: 57.0411016 | I10: 38.4646498
A11: 7 | B11: Argyll | C11: 2.050994 | D11: 22.281196 | E11: 46.743996 | F11: -3.408831 | G11: 53.8623166 | H11: 63.2111158 | I11: 52.2476434
A12: 8 | B12: The Trossachs | C12: 6.23806 | D12: 22.281196 | E12: 25.435127 | F12: -3.408831 | G12: 41.0022874 | H12: 46.0893128 | I12: 30.9387744
A13: 9 | B13: Stirlingshire and Fife | C13: 4.272401 | D13: 19.631385 | E13: 23.18038 | F13: -3.408831 | G13: 35.112982 | H13: 39.749058 | I13: 27.624103
A14: 10 | B14: South West Scotlands | C14: 4.845749 | D14: 20.14598 | E14: 23.57736 | F14: -3.408831 | G14: 36.41559 | H14: 41.131062 | I14: 28.226921
A15: 11 | B15: Lothian and Borders | C15: 4.845649 | D15: 20.14598 | E15: 11.679691 | F15: -3.408831 | G15: 26.8973548 | H15: 29.233293 | I15: 16.329252
A16: 12 | B16: Solway and Cheviot | C16: 3.790439 | D16: 13.206041 | E16: 12.528128 | F16: -3.408831 | G16: 20.9689432 | H16: 23.4745688 | I16: 14.4017134
A17: 13 | B17: North East England | C17: 5.448131 | D17: 10.356779 | E17: 7.737628 | F17: -3.408831 | G17: 16.5148256 | H17: 18.0623512 | I17: 8.4715086
A18: 14 | B18: North Lancashire and The Lakes | C18: 4.035137 | D18: 10.356779 | E18: 1.456753 | F18: -3.408831 | G18: 10.0771316 | H18: 10.3684822 | I18: 2.1906336
A19: 15 | B19: South Lancashire, Yorkshire and Humber | C19: 6.181872 | D19: 4.236419 | E19: 0.622295 | F19: -3.408831 | G19: 6.6600122 | H19: 6.7844712 | I19: -1.0919684
A20: 16 | B20: North Midlands and North Wales | C20: 5.164898 | D20: 1.496647 | E20: 0 | F20: -3.408831 | G20: 2.9533846 | H20: 2.9533846 | I20: -2.8101722
A21: 17 | B21: South Lincolnshire and North Norfolk | C21: 1.810564 | D21: 2.269497 | E21: 0 | F21: -3.408831 | G21: 0.2173306 | H21: 0.2173306 | I21: -2.5010322
A22: 18 | B22: Mid Wales and The Midlands | C22: 2.362423 | D22: 2.533204 | E22: 0 | F22: -3.408831 | G22: 0.9801552 | H22: 0.9801552 | I22: -2.3955494
A23: 19 | B23: Anglesey and Snowdon | C23: 7.738386 | D23: 1.950308 | E23: 0 | F23: -3.408831 | G23: 5.8898014 | H23: 5.8898014 | I23: -2.6287078
A24: 20 | B24: Pembrokeshire | C24: 12.627238 | D24: -10.449411 | E24: 0 | F24: -3.408831 | G24: 0.8588782 | H24: 0.8588782 | I24: -7.5885954
A25: 21 | B25: South Wales & Gloucester | C25: 5.549438 | D25: -10.740783 | E25: 0 | F25: -3.408831 | G25: -6.4520194 | H25: -6.4520194 | I25: -7.7051442
A26: 22 | B26: Cotswold | C26: 3.817271 | D26: 4.078568 | E26: -12.639287 | F26: -3.408831 | G26: -6.4401352 | H26: -8.9679926 | I26: -14.4166908
A27: 23 | B27: Central London | C27: -5.541144 | D27: 4.078568 | E27: -7.358544 | F27: -3.408831 | G27: -11.5739558 | H27: -13.0456646 | I27: -9.1359478
A28: 24 | B28: Essex and Kent | C28: -5.117544 | D28: 4.078568 | E28: 0 | F28: -3.408831 | G28: -5.2635206 | H28: -5.2635206 | I28: -1.7774038
A29: 25 | B29: Oxfordshire, Surrey and Sussex | C29: -2.1327 | D29: -3.436477 | E29: 0 | F29: -3.408831 | G29: -8.2907126 | H29: -8.2907126 | I29: -4.7834218
A30: 26 | B30: Somerset and Wessex | C30: -3.84589 | D30: -5.753115 | E30: 0 | F30: -3.408831 | G30: -11.857213 | H30: -11.857213 | I30: -5.710077
A31: 27 | B31: West Devon and Cornwall | C31: -4.504774 | D31: -14.678882 | E31: 0 | F31: -3.408831 | G31: -19.6567106 | H31: -19.6567106 | I31: -9.2803838
C33: Small Generation Discount (£/kW) | F33: 0

Sheet S16 & Fig S5
A1: Table S16 - Generation Tariff Changes (Base Case vs RIIO-2 EC&F Update) | M1: Figure S5 - Variation in Generation Zonal Tariffs (Base Case vs RIIO-2 EC&F Update)
A4: Wider Generation Tariffs (£/kW)
C5: Conventional Carbon 80% | F5: Conventional Low Carbon 80% | I5: Intermittent 40% | L5: Change in Residual (£/kW)
A6: Zone | B6: Zone Name | C6: 2021/22 Draft (£/kW) | D6: 2021/22 Draft (£/kW) (EC&F RIIO-2 Update) | E6: Change (£/kW) | F6: 2021/22 Draft (£/kW) | G6: 2021/22 Draft (£/kW) (EC&F RIIO-2 Update) | H6: Change (£/kW) | I6: 2021/22 Draft (£/kW) | J6: 2021/22 Draft (£/kW) (EC&F RIIO-2 Update) | K6: Change (£/kW)
A7: 1 | B7: North Scotland | C7: 35.2744276 | D7: 58.7930218 | E7: 23.5185942 | F7: 39.0476858 | G7: 65.5301208 | H7: 26.482435 | I7: 26.6695804 | J7: 44.3851704 | K7: 17.71559 | L7: -3.176079402
A8: 2 | B8: East Aberdeenshire | C8: 26.6328642 | D8: 42.5118896 | E8: 15.8790254 | F8: 30.4061224 | G8: 49.2489886 | H8: 18.8428662 | I8: 22.8939112 | J8: 37.4176708 | K8: 14.5237596 | L8: -3.176079402
A9: 3 | B9: Western Highlands | C9: 32.942153 | D9: 55.1299864 | E9: 22.1878334 | F9: 36.5831992 | G9: 61.6287058 | H9: 25.0455066 | I9: 25.2878796 | J9: 42.0328264 | K9: 16.7449468 | L9: -3.176079402
A10: 4 | B10: Skye and Lochalsh | C10: 26.3893252 | D10: 44.123669 | E10: 17.7343438 | F10: 30.0110052 | G10: 51.9653658 | H10: 21.9543606 | I10: 25.1910486 | J10: 48.7477134 | K10: 23.5566648 | L10: -3.176079402
A11: 5 | B11: Eastern Grampian and Tayside | C11: 27.34176 | D11: 47.563346 | E11: 20.221586 | F11: 30.446901 | G11: 53.0556504 | H11: 22.6087494 | I11: 20.644432 | J11: 33.6354042 | K11: 12.9909722 | L11: -3.176079402
A12: 6 | B12: Central Grampian | C12: 29.0494132 | D12: 50.8325264 | E12: 21.7831132 | F12: 32.3783882 | G12: 57.0411016 | H12: 24.6627134 | I12: 22.1722016 | J12: 38.4646498 | K12: 16.2924482 | L12: -3.176079402
A13: 7 | B13: Argyll | C13: 34.2428064 | D13: 53.8623166 | E13: 19.6195102 | F13: 39.466308 | G13: 63.2111158 | H13: 23.7448078 | I13: 30.837805 | J13: 52.2476434 | K13: 21.4098384 | L13: -3.176079402
A14: 8 | B14: The Trossachs | C14: 25.0139582 | D14: 41.0022874 | E14: 15.9883292 | F14: 27.89218 | G14: 46.0893128 | H14: 18.1971328 | I14: 19.111406 | J14: 30.9387744 | K14: 11.8273684 | L14: -3.176079402
A15: 9 | B15: Stirlingshire and Fife | C15: 21.5938472 | D15: 35.112982 | E15: 13.5191348 | F15: 24.2213208 | G15: 39.749058 | H15: 15.5277372 | I15: 17.2389554 | J15: 27.624103 | K15: 10.3851476 | L15: -3.176079402
A16: 10 | B16: South West Scotlands | C16: 22.4080116 | D16: 36.41559 | E16: 14.0075784 | F16: 25.0838128 | G16: 41.131062 | H16: 16.0472492 | I16: 17.6123734 | J16: 28.226921 | K16: 10.6145476 | L16: -3.176079402
A17: 11 | B17: Lothian and Borders | C17: 16.8773764 | D17: 26.8973548 | E17: 10.0199784 | F17: 18.1954738 | G17: 29.233293 | H17: 11.0378192 | I17: 10.8238544 | J17: 16.329252 | K17: 5.5053976 | L17: -3.176079402
A18: 12 | B18: Solway and Cheviot | C18: 13.9634218 | D18: 20.9689432 | E18: 7.0055214 | F18: 15.4439948 | G18: 23.4745688 | H18: 8.030574 | I18: 10.0955324 | J18: 14.4017134 | K18: 4.306181 | L18: -3.176079402
A19: 13 | B19: North East England | C19: 11.478354 | D19: 16.5148256 | E19: 5.0364716 | F19: 12.3883226 | G19: 18.0623512 | H19: 5.6740286 | I19: 6.5469608 | J19: 8.4715086 | K19: 1.9245478 | L19: -3.176079402
A20: 14 | B20: North Lancashire and The Lakes | C20: 7.6850032 | D20: 10.0771316 | E20: 2.3921284 | F20: 7.9282406 | G20: 10.3684822 | H20: 2.4402416 | I20: 3.2133048 | J20: 2.1906336 | K20: -1.0226712 | L20: -3.176079402
A21: 15 | B21: South Lancashire, Yorkshire and Humber | C21: 5.5759474 | D21: 6.6600122 | E21: 1.0840648 | F21: 5.6463578 | G21: 6.7844712 | H21: 1.1381134 | I21: 0.8733774 | J21: -1.0919684 | K21: -1.9653458 | L21: -3.176079402
A22: 16 | B22: North Midlands and North Wales | C22: 3.3680124 | D22: 2.9533846 | E22: -0.4146278 | F22: 3.3680124 | G22: 2.9533846 | H22: -0.4146278 | I22: -0.1247798 | J22: -2.8101722 | K22: -2.6853924 | L22: -3.176079402
A23: 17 | B23: South Lincolnshire and North Norfolk | C23: 2.000066 | D23: 0.2173306 | E23: -1.7827354 | F23: 2.000066 | G23: 0.2173306 | H23: -1.7827354 | I23: -0.021509 | J23: -2.5010322 | K23: -2.4795232 | L23: -3.176079402
A24: 18 | B24: Mid Wales and The Midlands | C24: 1.7236216 | D24: 0.9801552 | E24: -0.7434664 | F24: 1.7236216 | G24: 0.9801552 | H24: -0.7434664 | I24: 0.1084718 | J24: -2.3955494 | K24: -2.5040212 | L24: -3.176079402
A25: 19 | B25: Anglesey and Snowdon | C25: 5.3229256 | D25: 5.8898014 | E25: 0.5668758 | F25: 5.3229256 | G25: 5.8898014 | H25: 0.5668758 | I25: -0.2600802 | J25: -2.6287078 | K25: -2.3686276 | L25: -3.176079402
A26: 20 | B26: Pembrokeshire | C26: 5.3147578 | D26: 0.8588782 | E26: -4.4558796 | F26: 5.3147578 | G26: 0.8588782 | H26: -4.4558796 | I26: -2.1958406 | J26: -7.5885954 | K26: -5.3927548 | L26: -3.176079402
A27: 21 | B27: South Wales & Gloucester | C27: 1.7991538 | D27: -6.4520194 | E27: -8.2511732 | F27: 1.7991538 | G27: -6.4520194 | H27: -8.2511732 | I27: -2.2420966 | J27: -7.7051442 | K27: -5.4630476 | L27: -3.176079402
A28: 22 | B28: Cotswold | C28: -1.664316 | D28: -6.4401352 | E28: -4.7758192 | F28: -3.4407926 | G28: -8.9679926 | H28: -5.5272 | I28: -7.5868948 | J28: -14.4166908 | K28: -6.829796 | L28: -3.176079402
A29: 23 | B29: Central London | C29: -6.1607948 | D29: -11.5739558 | E29: -5.413161 | F29: -7.3475046 | G29: -13.0456646 | H29: -5.69816 | I29: -4.6380608 | J29: -9.1359478 | K29: -4.497887 | L29: -3.176079402
A30: 24 | B30: Essex and Kent | C30: -1.2788496 | D30: -5.2635206 | E30: -3.984671 | F30: -1.2788496 | G30: -5.2635206 | H30: -3.984671 | I30: 1.2954882 | J30: -1.7774038 | K30: -3.072892 | L30: -3.176079402
A31: 25 | B31: Oxfordshire, Surrey and Sussex | C31: -3.0834286 | D31: -8.2907126 | E31: -5.207284 | F31: -3.0834286 | G31: -8.2907126 | H31: -5.207284 | I31: -1.0957898 | J31: -4.7834218 | K31: -3.687632 | L31: -3.176079402
A32: 26 | B32: Somerset and Wessex | C32: -4.6851982 | D32: -11.857213 | E32: -7.1720148 | F32: -4.6851982 | G32: -11.857213 | H32: -7.1720148 | I32: -1.4933966 | J32: -5.710077 | K32: -4.2166804 | L32: -3.176079402
A33: 27 | B33: West Devon and Cornwall | C33: -5.2217578 | D33: -19.6567106 | E33: -14.4349528 | F33: -5.2217578 | G33: -19.6567106 | H33: -14.4349528 | I33: -2.5463274 | J33: -9.2803838 | K33: -6.7340564 | L33: -3.176079402

Sheet T19
A1: Table 19 - Summary of in flight CUSC modification proposals | E1: Return to Index
B4: Name | C4: Title | D4: Effect of proposed change | E4: Possible implementation
B5: CMP280 | C5: ‘Creation of a New Generator TNUoS Demand Tariff which Removes Liability for TNUoS Demand Residual Charges from Generation and Storage Users' | D5: Change the structure of demand TNUoS charges applied to storage and, potentially other generators. | E5: April 2021, if approved
B6: CMP286 | C6: Improving TNUoS Predictability through Increased Notice of the Target Revenue used in the TNUoS Tariff Setting Process v1 | D6: Fixes target revenue to be recovered from the TNUoS setting process earlier, to provide more stability to future tariffs. | E6: April 2021, if approved
B7: CMP287 | C7: Improving TNUoS Predictability Through Increased Notice of Inputs Used in the TNUoS Tariff Setting Process. | D7: Fixes parameters associated with the TNUoS setting process earlier, to provide more stability to future tariffs. | E7: April 2021, if approved
B8: CMP292 | C8: Introducing a Section 8 cut-off date for changes to the Charging Methodologies | D8: Introduces a cut off for changes to the charging methodologies to bring more stability and predictability to following years’ charges | E8: September 2020, If approved
B9: CMP301 | C9: Clarification on the treatment of project costs associated with HVDC and subsea circuits | D9: Clarification of the legal text to ensure that it is clear that AC substation costs are not included in the circuit expansion factor calculation for HVDC and subsea circuits. We already calculate in this manner. | E9: Implemented, No impact on charges
B10: CMP303 | C10: Improving local circuit charge cost-reflectivity | D10: Remove some of the cost of the HVDC and subsea circuits from the calculation of the local circuit, reducing the local circuit tariffs for these circuits. | E10: April 2020, no immediate impact on charges
B11: CMP280 | C11: Creation of a New Generator TNUoS Demand Tariff which Removes Liability for TNUoS Demand Residual Charges from Generation and Storage Users | D11: Remove demand residual charges from generation and storage | E11: April 2022 or beyond, if approved
B12: CMP316 | C12: TNUoS Arrangements for Co-located Generation Sites | D12: Develop a cost-reflective TNUoS arrangement for generation sites with multiple technology types | E12: April 2022 or beyond, if approved
B13: CMP317 & CMP327 | C13: Identification and exclusion of Assets Required for Connection when setting TNUoS charges | D13: Removal of revenue linked to “generator only spurs” from the calculation of generation revenue cap under the EU rules, and setting generation residual tariff to 0 | E13: April 2021, if approved
B14: CMP324 & CMP325 | C14: Generation Re-zoning | D14: Revise TNUoS generation zoning methodology | E14: Approved and implemented in this forecast
B15: CMP344 | C15: Clarification of Transmission Licensee revenue recovery and the treatment of revenue adjustments in the Charging Methodology | D15: Fixing the TNUoS revenue at each onshore price control period for onshore TOs, and at the point of asset transfer for OFTOs. | E15: April 2021, if approved
B16: CMP353 | C16: Stabilising the Expansion Constant and non-specific Onshore Expansion Factors from 1st April 2021 | D16: To stabilise the locational signal at the start of the RIIO-2 period at the RIIO-1 value plus relevant inflation in each charging year until such time as the effect of any change in the locational signal can be better understood. | E16: April 2021, if approved

Sheet T20
A1: Table 20 - Demand Locational Tariffs | G1: Return to Index
A5: Demand Zone | C5: 2021/22 August | D5: 2019/20 April | E5: 2021/22 Draft | F5: 2019/20 June (£/kW) | G5: Changes
C6: Peak (£/kW) | D6: Year Round (£/kW) | E6: Peak (£/kW) | F6: Year Round (£/kW) | G6: Peak (£/kW) | H6: Year Round (£/kW)
A7: 1 | B7: Northern Scotland | C7: -1.559501151 | D7: -29.94886431 | E7: -2.065764737 | F7: -31.64497826 | G7: -0.5062635857 | H7: -1.696113955
A8: 2 | B8: Southern Scotland | C8: -2.564159385 | D8: -21.50059466 | E8: -2.680633978 | F8: -21.87398055 | G8: -0.1164745935 | H8: -0.3733858924
A9: 3 | B9: Northern | C9: -3.241021841 | D9: -8.248344028 | E9: -3.292851645 | F9: -8.801689939 | G9: -0.05182980332 | H9: -0.5533459108
A10: 4 | B10: North West | C10: -2.185331135 | D10: -3.1744173 | E10: -2.307845002 | F10: -3.022540906 | G10: -0.1225138669 | H10: 0.1518763936
A11: 5 | B11: Yorkshire | C11: -2.32900981 | D11: -1.700130209 | E11: -2.510350167 | F11: -2.143213248 | G11: -0.1813403564 | H11: -0.4430830387
A12: 6 | B12: N Wales & Mersey | C12: -2.476766604 | D12: -0.7822594644 | E12: -2.395844076 | F12: -1.481497407 | G12: 0.08092252748 | H12: -0.6992379423
A13: 7 | B13: East Midlands | C13: -2.269741316 | D13: 1.92742404 | E13: -2.374726889 | F13: 1.550287902 | G13: -0.1049855729 | H13: -0.3771361386
A14: 8 | B14: Midlands | C14: -2.160602278 | D14: 3.073794082 | E14: -1.92637089 | F14: 2.673637641 | G14: 0.2342313889 | H14: -0.400156441
A15: 9 | B15: Eastern | C15: 1.375979091 | D15: 0.06756875636 | E15: 1.312461653 | F15: -0.2327967449 | G15: -0.06351743794 | H15: -0.3003655012
A16: 10 | B16: South Wales | C16: -6.270157085 | D16: 4.99067666 | E16: -3.943770065 | F16: 7.027155871 | G16: 2.32638702 | H16: 2.03647921
A17: 11 | B17: South East | C17: 4.133842905 | D17: 0.4863278067 | E17: 3.707807426 | F17: -0.0751885822 | G17: -0.4260354781 | H17: -0.5615163889
A18: 12 | B18: London | C18: 5.76167589 | D18: 0.9396856512 | E18: 5.13154366 | F18: 0.9781822517 | G18: -0.6301322291 | H18: 0.0384966005
A19: 13 | B19: Southern | C19: 2.129559859 | D19: 3.947512221 | E19: 1.985721962 | F19: 3.794495786 | G19: -0.1438378967 | H19: -0.1530164349
A20: 14 | B20: South Western | C20: -0.4099247179 | D20: 5.785214355 | E20: 1.48645771 | F20: 7.178559369 | G20: 1.896382427 | H20: 1.393345014

Sheet T21
A1: Table 21 - Breakdown of the Embedded Export Tariff | I1: Return to Index
A3: Demand Zone | C3: 2021/22 August | D3: 2019/20 April | E3: 2021/22 Draft | F3: 2019/20 June (£/kW) | G3: Changes
C4: Locational (£/kW) | D4: AGIC (£/kW) | E4: Locational (£/kW) | F4: AGIC (£/kW) | G4: Locational (£/kW) | H4: AGIC (£/kW)
A5: 1 | B5: Northern Scotland | C5: -31.50836546 | D5: 2.28788 | E5: -33.710743 | F5: 2.282952 | G5: =E5-C5 -> -2.202377541 | H5: =F5-D5 -> -0.004928
A6: 2 | B6: Southern Scotland | C6: -24.06475405 | D6: 2.28788 | E6: -24.55461453 | F6: 2.282952 | G6: -0.489860486 | H6: -0.004928
A7: 3 | B7: Northern | C7: -11.48936587 | D7: 2.28788 | E7: -12.09454158 | F7: 2.282952 | G7: -0.6051757142 | H7: -0.004928
A8: 4 | B8: North West | C8: -5.359748435 | D8: 2.28788 | E8: -5.330385909 | F8: 2.282952 | G8: 0.0293625267 | H8: -0.004928
A9: 5 | B9: Yorkshire | C9: -4.02914002 | D9: 2.28788 | E9: -4.653563415 | F9: 2.282952 | G9: -0.6244233951 | H9: -0.004928
A10: 6 | B10: N Wales & Mersey | C10: -3.259026068 | D10: 2.28788 | E10: -3.877341483 | F10: 2.282952 | G10: -0.6183154148 | H10: -0.004928
A11: 7 | B11: East Midlands | C11: -0.3423172758 | D11: 2.28788 | E11: -0.8244389873 | F11: 2.282952 | G11: -0.4821217115 | H11: -0.004928
A12: 8 | B12: Midlands | C12: 0.9131918031 | D12: 2.28788 | E12: 0.747266751 | F12: 2.282952 | G12: -0.1659250522 | H12: -0.004928
A13: 9 | B13: Eastern | C13: 1.443547848 | D13: 2.28788 | E13: 1.079664908 | F13: 2.282952 | G13: -0.3638829392 | H13: -0.004928
A14: 10 | B14: South Wales | C14: -1.279480424 | D14: 2.28788 | E14: 3.083385806 | F14: 2.282952 | G14: 4.36286623 | H14: -0.004928
A15: 11 | B15: South East | C15: 4.620170711 | D15: 2.28788 | E15: 3.632618844 | F15: 2.282952 | G15: -0.987551867 | H15: -0.004928
A16: 12 | B16: London | C16: 6.701361541 | D16: 2.28788 | E16: 6.109725912 | F16: 2.282952 | G16: -0.5916356286 | H16: -0.004928
A17: 13 | B17: Southern | C17: 6.077072079 | D17: 2.28788 | E17: 5.780217748 | F17: 2.282952 | G17: -0.2968543316 | H17: -0.004928
A18: 14 | B18: South Western | C18: 5.375289637 | D18: 2.28788 | E18: 8.665017079 | F18: 2.282952 | G18: 3.289727441 | H18: -0.004928

Sheet T22
A1: Table 22 - Demand Profiles | H1: Return to Index
A3: Zone | B3: Zone Name | C3: 2021/22 August | H3: 2021/22 Draft
C4: Locational Model Demand (MW) | D4: GROSS Tariff model Peak Demand (MW) | E4: GROSS Tariff Model HH Demand (MW) | F4: Tariff model NHH Demand (TWh) | G4: Tariff model Embedded Export (MW) | H4: Locational Model Demand (MW) | I4: GROSS Tariff model Peak Demand (MW) | J4: GROSS Tariff Model HH Demand (MW) | K4: Tariff model NHH Demand (TWh) | L4: Tariff model Embedded Export (MW)
A5: 1 | B5: Northern Scotland | C5: 166.85119 | D5: 1464.633684 | E5: 435.0999906 | F5: 0.7571445894 | G5: 1375.350403 | H5: 121.939003 | I5: 1436.496622 | J5: 436.6153002 | K5: 0.7552701296 | L5: 1025.262401
A6: 2 | B6: Southern Scotland | C6: 2313.995441 | D6: 3335.464014 | E6: 1191.241166 | F6: 1.655129059 | G6: 576.6349682 | H6: 1976.995441 | I6: 3307.997055 | J6: 1201.043706 | K6: 1.662719146 | L6: 630.1028159
A7: 3 | B7: Northern | C7: 2046 | D7: 2496.823828 | E7: 1032.040513 | F7: 1.178808415 | G7: 487.1602168 | H7: 2037 | I7: 2486.703316 | J7: 1029.897551 | K7: 1.190749258 | L7: 411.0509578
A8: 4 | B8: North West | C8: 2881 | D8: 3931.45384 | E8: 1470.495426 | F8: 1.946643886 | G8: 440.6062313 | H8: 2183 | I8: 3900.287083 | J8: 1444.908132 | K8: 1.961341225 | L8: 369.4892165
A9: 5 | B9: Yorkshire | C9: 4002 | D9: 3748.374107 | E9: 1541.449988 | F9: 1.785082869 | G9: 782.5767023 | H9: 4062 | I9: 3740.957332 | J9: 1547.273886 | K9: 1.805976464 | L9: 670.7808964
A10: 6 | B10: N Wales & Mersey | C10: 2841 | D10: 2557.873064 | E10: 1008.249956 | F10: 1.24399762 | G10: 625.3873821 | H10: 2568 | I10: 2544.235505 | J10: 1016.943414 | K10: 1.258825541 | L10: 533.4949343
A11: 7 | B11: East Midlands | C11: 5445 | D11: 4580.880046 | E11: 1745.037975 | F11: 2.222199525 | G11: 584.7024174 | H11: 5059 | I11: 4573.334909 | J11: 1756.59535 | K11: 2.245966331 | L11: 504.0059184
A12: 8 | B12: Midlands | C12: 4445 | D12: 4154.746912 | E12: 1559.613083 | F12: 2.008927602 | G12: 267.8050981 | H12: 4198 | I12: 4137.234852 | J12: 1551.38114 | K12: 2.028646929 | L12: 261.5260329
A13: 9 | B13: Eastern | C13: 5672 | D13: 6267.953572 | E13: 2013.457188 | F13: 3.104939746 | G13: 620.0734522 | H13: 5301 | I13: 6304.527139 | J13: 2119.685589 | K13: 3.138921145 | L13: 772.1564089
A14: 10 | B14: South Wales | C14: 1642 | D14: 1777.736503 | E14: 798.8610247 | F14: 0.8426057423 | G14: 419.0659015 | H14: 1821 | I14: 1760.825004 | J14: 787.7748601 | K14: 0.8504386939 | L14: 365.7446218
A15: 11 | B15: South East | C15: 3217 | D15: 3829.873168 | E15: 1155.180736 | F15: 1.937954867 | G15: 353.7383795 | H15: 3400 | I15: 3802.515559 | J15: 1147.226885 | K15: 1.95827672 | L15: 326.3798454
A16: 12 | B16: London | C16: 5171 | D16: 4081.985576 | E16: 2166.971212 | F16: 1.827425003 | G16: 126.9337907 | H16: 4657 | I16: 4094.410118 | J16: 2173.472324 | K16: 1.831375695 | L16: 129.8360671
A17: 13 | B17: Southern | C17: 7684 | D17: 5383.53643 | E17: 2013.603059 | F17: 2.610096481 | G17: 394.107317 | H17: 6553 | I17: 5358.498128 | J17: 2004.19814 | K17: 2.635148584 | L17: 412.614176
A18: 14 | B18: South Western | C18: 2167 | D18: 2544.199195 | E18: 735.163841 | F18: 1.31257743 | G18: 258.777564 | H18: 2412 | I18: 2533.808064 | J18: 736.9254674 | K18: 1.317057598 | L18: 246.4450851
A19: Total | C19: =SUM(C5:C18) -> 49693.84663 | D19: =SUM(D5:D18) -> 50155.53394 | E19: 18866.46516 | F19: 24.43353283 | G19: 7312.919824 | H19: 46349.93444 | I19: 49981.83069 | J19: 18953.94174 | K19: 24.64071346 | L19: 6658.889378

Sheet T23
A1: Table 23 - Generic Annual Load Factors | E1: Return to Index
A4: Technology | B4: Generic ALF
A5: Gas_Oil | B5: 0.003935
A6: Pumped_Storage | B6: 0.102893
A7: Tidal | B7: 0.189
A8: Biomass | B8: 0.398387
A9: Wave | B9: 0.31
A10: Onshore_Wind | B10: 0.35666
A11: CCGT_CHP | B11: 0.50947
A12: Hydro | B12: 0.417886
A13: Offshore_Wind | B13: 0.483204
A14: Coal | B14: 0.277372
A15: Nuclear | B15: 0.775645
A17: *Note:
A18: 1. ALF figures for Wave and Tidal technology are generic figures provided by BEIS due to no metered data being available.
A19: 2. 2020 draft ALFs (including generic and station-specific ALFs) will be published on 30th November

Sheet T24
A1: Table 24 - Connected Generation Changes | H1: Return to Index
B3: Power Station | C3: MW Change | D3: Node | E3: Generation Zone
B4: Nemo Link (correction) | C4: -1020 | D4: RICH40 | E4: 24
B5: Abedare | C5: 10 | D5: UPPB21 | E5: 21
B6: Aberthaw | C6: -1560 | D6: ABTH20 | E6: 21
B7: Burwell (Tertiary) | C7: -49.9 | D7: BURW40 | E7: 18
B8: Capenhurst 275KV Substation | C8: 49.9 | D8: CAPE20 | E8: 16
B9: Exeter (Tertiary) | C9: -49.9 | D9: EXET40 | E9: 26
B10: Fallago Rig 2 | C10: -41.4 | D10: FALL40 | E10: 11
B11: Kirkby (Tertiary) | C11: -49.9 | D11: KIBY20 | E11: 15
B12: North Killingholme Power Project | C12: -540 | D12: KILL40 | E12: 15
B13: Oldbury (Tertiary) | C13: -49.9 | D13: OLDB4A | E13: 18
B14: Seabank (Tertiary) | C14: -49.9 | D14: SEAB40 | E14: 22
B15: Sellindge (Tertiary) | C15: -49.9 | D15: SELL40 | E15: 24
B16: Thurrock | C16: 600 | D16: TILB20 | E16: 24
B17: Tralorg Wind Farm | C17: 20 | D17: MAHI20 | E17: 10
B18: Bramford (Tertiary PP) | C18: -49.9 | D18: BRFO40 | E18: 18

Sheet T25-28
A1: Tables 25-28 - Revenue Breakdown | H1: Return to Index
A3: 2021/22 Revenue | C3: Licence Term | D3: National Grid Electricity Transmission | H3: Scottish Power Transmission | L3: SHE Transmission | S3: NGESO TNUoS Other Pass-Through
A4: Description | P4: Notes
A5: Regulatory Year | D5: March Forecast | E5: August Forecast | F5: Nov Draft | G5: Jan Final | H5: March Forecast | I5: August Forecast | J5: Nov Draft | K5: Jan Final | L5: March Forecast | M5: July Forecast | N5: Nov Draft | O5: Jan Final | R5: Term | S5: March Forecast | T5: August Forecast | U5: Nov Draft | V5: Jan Final
A6: Opening Base Revenue Allowance (2009/10 prices) | B6: A1 | C6: PUt | D6: 1585.120181 | H6: 261.86514 | L6: 273.4111788 | P6: Office of National Statistics | R6: Embedded Offshore Pass-Through (OFETt) | S6: 0.5866321945 | T6: 0.5787828905 | U6: =T6 -> 0.5787828905
A7: Price Control Financial Model Iteration Adjustment | B7: A2 | C7: MODt | D7: -393.9140795 | H7: -8.499663235 | L7: -8.21671246 | P7: Bank of England Base Rate | R7: Network Innovation Competition (NICFt) | S7: 13.854501 | T7: 13.854501 | U7: =T7 -> 13.854501
A8: RPI True Up | B8: A3 | C8: TRUt | D8: -1.081159075 | H8: -2.057753863 | L8: 0 | P8: From Licence | R8: ESO Network Innovation Allowance (NIAt) | S8: 3 | T8: 3.039817129 | U8: 0
A9: RPI Forecast | B9: A4 | C9: RPIFt | D9: 1.42 | H9: =D9 -> 1.42 | L9: =D9 -> 1.42 | P9: Forecast | R9: Offshore Transmission Revenue (OFTOt) and Interconnectors Cap&Floor Revenue Adjustment (TICFt) | S9: 529.9402718 | T9: 555.8050714 | U9: 545.591719
A10: Base Revenue [A=(A1+A2+A3)*A4] | B10: A | C10: BRt | D10: =SUM(D6:D8)*D9 -> 1689.977419 | E10: 1688.787294 | F10: 1961.805423 | H10: =SUM(H6:H8)*H9 -> 356.8569665 | I10: 351.5795043 | J10: 378.1647789 | L10: =SUM(L6:L8)*L9 -> 376.5761422 | M10: 382.5022392 | P10: Forecast | R10: Financial facility (FINt) | T10: 0 | U10: =T10 -> 0
A11: Pass-Through Business Rates & Licence fee | B11: B1+B3 | C11: RBt+LFt | D11: 38.08408282 | H11: 4.088336212 | I11: =H11 -> 4.088336212 | L11: 0 | P11: Using HM Treasury Forecast | R11: Site Specific Charges Discrepancy (DISt) | T11: 0 | U11: =T11 -> 0
A12: Temporary Physical Disconnection | B12: B2 | C12: TPDt | D12: 4.845318822 | H12: 0 | L12: 0 | R12: Termination Sums (TSt) | T12: 0 | U12: =T12 -> 0
A13: Inter TSO Compensation | B13: B4 | C13: ITCt | D13: -2.758283629 | P13: Forecast | R13: NGET revenue pas-through (NGETTOt)* | S13: =D26 -> 1754.913464 | T13: =E26 -> 1723.875804 | U13: =F26 -> 1919.8752
A14: Pass-Through Items [B=B1+B2+B3+B4+B5+B6+B7+B8+B9+B10] | B14: B | C14: PTt | D14: =SUM(D11:D13) -> 40.17111802 | E14: 40.17111802 | F14: 0 | H14: =SUM(H11:H13) -> 4.088336212 | I14: =H14 -> 4.088336212 | L14: =SUM(L11:L13) -> 0 | P14: Forecast | R14: SPT revenue pass-through (TSPt) | S14: =H26 -> 376.7430257 | T14: =I26 -> 371.4655635 | U14: =J26 -> 390.5968126
A15: Financial Incentive for Timely Connections Output | B15: C5 | C15: -CONADJt | R15: SHETL revenue pass-through (TSHt) | S15: =L26 -> 374.0342667 | T15: =M26 -> 379.9603637 | U15: =N26 -> 539.7390927
A16: Reliability Incentive Adjustment, stakeholder Satisfaction Adjustment and SF6 Gas Emission Adjustment | B16: C1+C2+C3 | C16: RIt+SSOt+SFIt | D16: 17.16538443 | E16: =D16 -> 17.16538443 | H16: 3.410181625 | L16: 0 | P16: Forecast | R16: Total | S16: =SUM(S6:S15) -> 3053.072161 | T16: =SUM(T6:T15) -> 3048.579904 | U16: =SUM(U6:U15) -> 3410.236109
A17: Outputs Incentive Revenue [C=C1+C2+C3] | B17: C | C17: OIPt | D17: =SUM(D15:D16) -> 17.16538443 | E17: 17.16538443 | F17: 0 | H17: =H16 -> 3.410181625 | I17: 3.410181625 | L17: =L16 -> 0 | P17: Forecast
A18: Network Innovation Allowance | B18: D | C18: NIAt | D18: 7.599542822 | E18: =D18 -> 7.599542822 | H18: 0 | L18: 0.9 | M18: =L18 -> 0.9 | P18: Forecast
A19: Future Environmental Discretionary Rewards | B19: F | C19: EDRt | H19: 0 | L19: 0
A20: Transmission Investment for Renewable Generation | B20: G | C20: TIRGt | H20: 32.48631379 | I20: 32.48631379 | J20: 31.88981368 | L20: 0 | P20: Forecast
A21: Correction Factor | B21: -K | C21: -K | F21: -12.08268827 | H21: -7.353105496 | I21: -7.353105496 | L21: 0
A22: Financial Facility | B22: FINt | C22: FINt
A23: Maximum Revenue [M= A+B+C+D+E+F+G+H+I+K] | B23: M | C23: TOt | D23: =D10+D14+D17+D18+D19+D20+D21+D22 -> 1754.913464 | E23: =E10+E14+E17+E18+E19+E20+E21+E22 -> 1753.723339 | F23: =F10+F14+F17+F18+F19+F20+F21+F22 -> 1949.722735 | H23: =H10+H14+H17+H18+H19+H20+H21 -> 389.4886927 | I23: =I10+I14+I17+I18+I19+I20+I21 -> 384.2112305 | J23: =J10+J14+J17+J18+J19+J20+J21 -> 410.0545926 | L23: =L10+L14+L17+L18+L19+L20+L21 -> 377.4761422 | M23: =M10+M14+M17+M18+M19+M20+M21 -> 383.4022392 | N23: 542.6390827 | P23: Forecast
A24: Pre-vesting connection charges | B24: S1 | D24: 0 | E24: 29.73288112 | F24: =E24 -> 29.73288112 | H24: 12.74566693 | I24: 12.74566693 | J24: 19.45778006 | L24: 3.441875487 | M24: 3.441875487 | N24: 2.899990023 | P24: Forecast
A25: Rental Site | B25: S2 | D25: 0 | E25: 0.11465353 | F25: =E25 -> 0.11465353
A26: TNUoS Collected Revenue [T=M-B5-P] | B26: T | D26: =D23-D24-D25 -> 1754.913464 | E26: =E23-E24-E25 -> 1723.875804 | F26: =F23-F24-F25 -> 1919.8752 | H26: =H23-H24 -> 376.7430257 | I26: 371.4655635 | J26: 390.5968126 | L26: 374.0342667 | M26: 379.9603637 | N26: 539.7390927 | P26: Forecast
A33: Notes
A34: All monies are nominal 'money of the day' prices unless stated otherwise | I34: Total | J34: =E26+I26+M26+SUM(T6:T10) -> 3048.579904
A35: Licensee forecasts and budgets are subject to change especially where they are influenced by external stakeholders
A36: Greyed out cells are either calculated or not applicable in the year concerned due to the way the licence formula are constructed
A37: NIC payments are listed separately, as they do not form part of TOs Maximum Revenue
A39: Commentary
A40: All reasonable care has been taken in the preparation of these illustrative tables and the data therein.
A41: TOs offer this data without prejudice and cannot be held responsible for any loss that might be attributed to the use of this data.
A42: TOs do not accept or assume responsibility for the use of this information by any person or any person to whom this information is shown or any person to whom this information otherwise becomes available.
A44: This forecast contains as much information as can be currently made available.
A47: This respects commercial confidentiality and disclosure considerations.
A49: All £ figures are in money of the day
A51: Information provided in £m to one decimal place
A53: SHE Transmission Commentary
A54: All reasonable care has been taken in the preparation of these illustrative tables and the data therein. SHET offers the data without prejudice and cannot be held responsible for any loss that might be attributed to the use of this data. SHET does not accept or assume responsibility for the use of this information by any person or any person to whom this information is shown or any person to whom this information otherwise becomes available.
A56: The base revenue forecasts for the RIIO-T1 period (2019/20 to 2020/21, inclusive) reflect the figures authorised by Ofgem in the RIIO-T1 Final Proposals.
A57: The maximum revenue awarded for the RIIO-T2 period from 2021/22 inclusive, reflects the SHETL T2 business plan submission. CPI has therefore been adopted for indexation purposes and figures have accordingly been indexed up at a flat CPI rate of 2% to reflect the submitted plan.
A60: This forecast contains as much information as can be currently made available. Generally, allowances determined by Ofgem are shown; whilst those for which Ofgem determinations are expected are not. This respects commercial confidentiality and disclosure considerations.
A62: It should be noted that the years relating to RIIO-T2 (2021/22 to 2025/26) represent an extrapolation of numbers based on the SHETL business plan and therefore do not reflect anything beyond a high level estimation of a potential scenario. These numbers represent a base programme, constructed from an internal 5 year model which has projected on the assumption that the submitted plan will be enacted in full.
A64: Note that actual revenues may vary from those currently forecast.
A66: All £ figures are in money of the day
A68: Information provided in £m to one decimal place
A70: SHE Transmssion Assumptions
A71: The charging year runs from 1st April to 31st March, with charges set one year in advance. The information available at the time will be reflected in those charges.
A72: For 2021/22, which is the first year of RIIO-T2, maximum revenue reflects a number of assumptions and changes to key parameters: - increase in base allowed totex to align with projected portfolio impacting fast money expectations for 2021/22 and overall Company RAV; plus - an expectation of TIRG revenue following TIRG RAV being reflected within Core RAV - this is expected to occur at the beginning of RIIO-T2; plus - an increase in the Business Rates allowance to reflect the actual increase in rates which have been projected for RIIO-T2; - an increase in tax revenue allowance assuming that tax is treated as a pass through item; - an increase in WACC based on adjusted parameters and transition from RPI to CPI. Other inputs around incentives have been assumed as nil, given ongoing discussions over RIIO-T1 close out and implications for RIIO-T2.
A74: Note, due to the RIIO-T2 ongoing settlement discussions following draft determinations, the current forecast does not constitute the expression of SHE Transmission's plans or expectations at an individual input level (i.e. by a particular incentive); but rather on an overall basis representing revenue collected under the current proposed business plan.
A75: The forecast does not account for close out adjustments at the end of RIIO-T1 for any of the two year lag items.
A77: SPT Commentary
A78: All reasonable care has been taken in the preparation of these illustrative tables and the data therein.
A79: SPT offers this data without prejudice and cannot be held responsible for any loss that might be attributed to the use of this data.
A80: SPT does not accept or assume responsibility for the use of this information by any person or any person to whom this information is shown or any person to whom this information otherwise becomes available.
A81: The base revenue forecasts for the RIIO-ET1 period (2013/14 to 2020/21, inclusive) reflect the figures authorised by Ofgem in the the RIIO-ET1 Final Proposals.
A82: The base revenue for the RIIO-ET2 period from 2021/22 is equivalent to the SPT Dec 19 Business Plan submission as provided in the published Licence Model (LiMo).
A83: Within the bounds of commercial confidentiality, this forecast provides as much information as possible.
A85: This forecast contains as much information as can be currently made available.
A86: Generally, allowances determined by Ofgem are shown; and we also include forecasts for anticipated future Ofgem determinations in respect of the Iteration adjustment reflecting our latest view of totex, changes to allowed totex and cost of debt.
A88: This respects commercial confidentiality and disclosure considerations.
A90: Note that actual revenues may vary from those currently forecast.
A92: All £ figures are in money of the day
A94: NGET Commentary
A95: The indicative exit charges are based on revenues derived from National Grid’s proposed RIIO-2 framework as set out in our business plan submission of 9th December 2019.
A96: RIIO-2 Final Determinations are anticipated to be published by Ofgem in December 2020.
A97: In our business plan submission, we highlighted a flat consumer bill from RIIO-1 to RIIO-2. Our business plan talks about consumers bills pre inflation in RIIO-2 whereas these figures published for charge setting include inflation.
A98: In RIIO-2 plan, we were clear that we referenced average bills across RIIO-2 versus average bills across RIIO-1. Revenues at the end of the RIIO-1 period are depressed because of the negative MOD adjustments in the latter years of RIIO-1 mainly as a result of decrease in volume drivers and reduction in cost of debt.

Sheet T29
A1: Table 29 - Offshore Revenues | J1: Return to Index
A3: Offshore Transmission Revenue Forecast (£m) | B3: 2020-11-26
J4: Notes
A5: Regulatory Year | B5: 2014/15 | C5: 2015/16 | D5: 2016/17 | E5: 2017/18 | F5: 2018/19 | G5: 2019/20 | H5: 2020/21 | I5: 2021/22
A6: Barrow | B6: 5.475948387 | C6: 5.605119166 | D6: 5.656283019 | E6: 5.872496367 | F6: 6.250052539 | G6: 6.437679531 | H6: 6.624263038 | I6: 6.714635282 | J6: Current revenues plus indexation
A7: Gunfleet | B7: 6.853152423 | C7: 7.014459018 | D7: 7.080594599 | E7: 7.432422281 | F7: 7.801752691 | G7: 8.077503308 | H7: 8.24261654 | I7: 8.3950566 | J7: Current revenues plus indexation
A8: Walney 1 | B8: 12.49105951 | C8: 12.78636456 | D8: 12.90184157 | E8: 13.13609825 | F8: 13.60716746 | G8: 14.66479765 | H8: 15.10552504 | I8: 15.34111431 | J8: Current revenues plus indexation
A9: Robin Rigg | B9: 7.709472064 | C9: 7.891440662 | D9: 7.993308366 | E9: 8.367306563 | F9: 8.748852974 | G9: 9.125641443 | H9: 9.290493193 | I9: 9.4 | J9: Current revenues plus indexation
A10: Walney 2 | B10: 12.92696073 | C10: 13.23221075 | D10: 12.51589741 | E10: 12.29931316 | F10: 16.32580671 | G10: 14.54601197 | H10: 14.91817436 | I10: 15.14210445 | J10: Current revenues plus indexation
A11: Sheringham Shoal | B11: 18.92412411 | C11: 19.49893387 | D11: 19.72766462 | E11: 20.02531234 | F11: 20.74277833 | G11: 21.42054126 | H11: 22.9060639 | I11: 23.36592522 | J11: Current revenues plus indexation
A12: Ormonde | B12: 11.57050189 | C12: 11.84309117 | D12: 11.95215008 | E12: 12.15604428 | F12: 12.59369632 | G12: 13.94408723 | H12: 13.91903667 | I12: 14.14385076 | J12: Current revenues plus indexation
A13: Greater Gabbard | B13: 25.9995199 | C13: 26.61925023 | D13: 26.87143257 | E13: 27.3092326 | F13: 28.3875676 | G13: 29.31557302 | H13: 31.5624927 | I13: 32.10164737 | J13: Current revenues plus indexation
A14: London Array | B14: 37.57295282 | C14: 39.2120985 | D14: 39.49870272 | E14: 39.51888334 | F14: 41.77261774 | G14: 43.29040895 | H14: 44.26314794 | I14: 44.54129807 | J14: Current revenues plus indexation
A15: Thanet | B15: 78.85668167 | C15: 17.51705273 | D15: 15.69984448 | E15: 19.5121928 | F15: 18.62320211 | G15: 19.18120656 | H15: 19.66747116 | I15: 20.70461074 | J15: Current revenues plus indexation
A16: Lincs | C16: 25.56339384 | D16: 26.68704214 | E16: 27.18814554 | F16: 28.16936445 | G16: 29.21644361 | H16: 29.72150456 | I16: 29.97276023 | J16: Current revenues plus indexation
A17: Gwynt y mor | C17: 26.28358513 | D17: 23.6461166 | E17: 29.34287447 | F17: 32.73080929 | G17: 33.98287135 | H17: 18.86244047 | I17: 26.39798051 | J17: Current revenues plus indexation
A18: West of Duddon Sands | C18: 35.2899996 | D18: 21.27389291 | E18: 22.04538798 | F18: 22.57265006 | G18: 23.57897363 | H18: 23.05792297 | I18: 25.2507485 | J18: Current revenues plus indexation
A19: Humber Gateway | D19: 29.28454151 | E19: 9.749899087 | F19: 12.14541511 | G19: 12.47812448 | H19: 11.25724121 | I19: 13.01013587 | J19: Current revenues plus indexation
A20: Westermost Rough | E20: 11.57669261 | F20: 13.19733993 | G20: 13.56403388 | H20: 13.94353078 | I20: 14.18212019 | J20: Current revenues plus indexation
A21: Burbo Bank | F21: 34.27592625 | G21: 13.06016509 | H21: 12.7846534 | I21: 14.06591394 | J21: Current revenues plus indexation
A22: Dudgeon | G22: 18.69643663 | H22: 19.2027767 | I22: 19.59847917 | J22: Current revenues plus indexation
A23: Race Bank | G23: 66.01620616 | H23: 26.72161419 | I23: 27.38315634 | J23: Current revenues plus indexation
A24: Galloper | H24: 37.79582017 | I24: 17.06394505 | J24: Current revenues plus indexation
A25: Walney 3 | I25: 13.45362616 | J25: Current revenues plus indexation
A26: Walney 4 | I26: 13.45362616 | J26: Current revenues plus indexation
A27: Forecast to asset transfer to OFTO in 2020/21 | I27: 103.2 | J27: National Grid Forecast
H28: 63.92359682
A29: Forecast to asset transfer to OFTO in 2021/22 | I29: 38.7 | J29: National Grid Forecast
A30: Offshore Transmission Pass-Through (B7) | B30: =SUM(B6:B28) -> 218.3803735 | C30: 248.3569992 | D30: 260.7893126 | E30: 265.5323017 | F30: 317.9449996 | G30: =SUM(G6:G28) -> 390.5967058 | H30: 443.7703858 | I30: =SUM(I6:I29) -> 545.5827349
A33: Notes:
A34: Figures for historic years represent National Grid's forecast of OFTO revenues at the time final tariffs were calculated for each charging year rather than our current best view.
A35: Licensee forecasts and budgets are subject to change especially where they are influenced by external stakeholders
A36: Greyed out cells are either calculated or not applicable in the year concerned due to the way the licence formula are constructed
A37: NIC payments are not included as they do not form part of OFTO Maximum Revenue
